Body Name,Body,Date,Department,Beneficiary,Summary of Purpose (SeRCOP),Amount,Merchant Code,Transaction Number
Sandwell Metropolitan Borough Council,http://www.sandwell.gov.uk/info/200202/performance_and_spending/3233/government_procurement_cards,04-Jul-2018,Childrens Services,ASDA STORES LTD 5865,Childrens Services,0.88,Catering Provisions,1819Q02_PC00001
Sandwell Metropolitan Borough Council,http://www.sandwell.gov.uk/info/200202/performance_and_spending/3233/government_procurement_cards,04-Jul-2018,Housing & Communities,DIGITAL ID,Neighbourhoods,48.9,Printing Stationery&Gen Office,1819Q02_PC00002
Sandwell Metropolitan Borough Council,http://www.sandwell.gov.uk/info/200202/performance_and_spending/3233/government_procurement_cards,04-Jul-2018,Resources (Inc SIU),Amazon EU,Assistant Chief Executive (Excl SIU),15.78,Printing Stationery&Gen Office,1819Q02_PC00003
Sandwell Metropolitan Borough Council,http://www.sandwell.gov.uk/info/200202/performance_and_spending/3233/government_procurement_cards,04-Jul-2018,Regeneration & Growth,RICS COM GBP CYBS,Regeneration And The Economy,155,Printing Stationery&Gen Office,1819Q02_PC00004
Sandwell Metropolitan Borough Council,http://www.sandwell.gov.uk/info/200202/performance_and_spending/3233/government_procurement_cards,04-Jul-2018,Housing & Communities,EDGBASTON PALACE,Neighbourhoods,550,Rents,1819Q02_PC00005
Sandwell Metropolitan Borough Council,http://www.sandwell.gov.uk/info/200202/performance_and_spending/3233/government_procurement_cards,04-Jul-2018,Regeneration & Growth,POUNDLAND LTD 1729,Regeneration And The Economy,5.83,Printing Stationery&Gen Office,1819Q02_PC00006
Sandwell Metropolitan Borough Council,http://www.sandwell.gov.uk/info/200202/performance_and_spending/3233/government_procurement_cards,04-Jul-2018,Housing & Communities,HIGHFIELD HOUSE HO,Neighbourhoods,22.5,Rents,1819Q02_PC00007
Sandwell Metropolitan Borough Council,http://www.sandwell.gov.uk/info/200202/performance_and_spending/3233/government_procurement_cards,04-Jul-2018,Childrens Services,ASDA STORES LTD 5865,Childrens Services,3,Catering Provisions,1819Q02_PC00008
Sandwell Metropolitan Borough Council,http://www.sandwell.gov.uk/info/200202/performance_and_spending/3233/government_procurement_cards,04-Jul-2018,Resources (Inc SIU),SAINSBURYS SACAT0558,Assistant Chief Executive (Excl SIU),15.07,Printing Stationery&Gen Office,1819Q02_PC00009
Sandwell Metropolitan Borough Council,http://www.sandwell.gov.uk/info/200202/performance_and_spending/3233/government_procurement_cards,04-Jul-2018,Individual School Budgets With Inclusion,Amazon EU,Individual School Budgets With Inclusion,82.39,Materials & Consumables,1819Q02_PC00010
Sandwell Metropolitan Borough Council,http://www.sandwell.gov.uk/info/200202/performance_and_spending/3233/government_procurement_cards,04-Jul-2018,Resources (Inc SIU),HMCOURTS-SERVICE.G,Assistant Chief Executive (Excl SIU),1464,Council Tax,1819Q02_PC00011
Sandwell Metropolitan Borough Council,http://www.sandwell.gov.uk/info/200202/performance_and_spending/3233/government_procurement_cards,04-Jul-2018,Childrens Services,VIKING,Childrens Services,86.85,Equipment & Furniture,1819Q02_PC00012
Sandwell Metropolitan Borough Council,http://www.sandwell.gov.uk/info/200202/performance_and_spending/3233/government_procurement_cards,04-Jul-2018,Childrens Services,VIKING,Childrens Services,37.46,Equipment & Furniture,1819Q02_PC00013
Sandwell Metropolitan Borough Council,http://www.sandwell.gov.uk/info/200202/performance_and_spending/3233/government_procurement_cards,04-Jul-2018,Corporate Management,Virgin Trains,Corporate Management,115,Public Transport,1819Q02_PC00014
Sandwell Metropolitan Borough Council,http://www.sandwell.gov.uk/info/200202/performance_and_spending/3233/government_procurement_cards,04-Jul-2018,Corporate Management,QUALITY FOOD LTD-61451,Corporate Management,44,Civic Events,1819Q02_PC00015
Sandwell Metropolitan Borough Council,http://www.sandwell.gov.uk/info/200202/performance_and_spending/3233/government_procurement_cards,04-Jul-2018,Housing & Communities,EDGBASTON PALACE,Neighbourhoods,500,Rents,1819Q02_PC00016
Sandwell Metropolitan Borough Council,http://www.sandwell.gov.uk/info/200202/performance_and_spending/3233/government_procurement_cards,04-Jul-2018,Housing & Communities,RAMADA INNS,Neighbourhoods,115,Rents,1819Q02_PC00017
Sandwell Metropolitan Borough Council,http://www.sandwell.gov.uk/info/200202/performance_and_spending/3233/government_procurement_cards,05-Jul-2018,Regeneration & Growth,WESTERN POWER DISTRIBU,Regeneration And The Economy,-800.83,Professional Services External,1819Q02_PC00018
Sandwell Metropolitan Borough Council,http://www.sandwell.gov.uk/info/200202/performance_and_spending/3233/government_procurement_cards,05-Jul-2018,Resources (Inc SIU),DON RUFFLES LTD,Assistant Chief Executive (Excl SIU),18.45,Printing Stationery&Gen Office,1819Q02_PC00019
Sandwell Metropolitan Borough Council,http://www.sandwell.gov.uk/info/200202/performance_and_spending/3233/government_procurement_cards,05-Jul-2018,Housing & Communities,PREMIER INN,Neighbourhoods,88.33,Rents,1819Q02_PC00020
Sandwell Metropolitan Borough Council,http://www.sandwell.gov.uk/info/200202/performance_and_spending/3233/government_procurement_cards,05-Jul-2018,Total Housing Revenue Account,METROLINK TVM,Total Housing Revenue Account,2.67,Ind. Emp Exp-Staff Dev&Training,1819Q02_PC00021
Sandwell Metropolitan Borough Council,http://www.sandwell.gov.uk/info/200202/performance_and_spending/3233/government_procurement_cards,05-Jul-2018,Housing & Communities,HIGHFIELD HOUSE HO,Neighbourhoods,22.5,Rents,1819Q02_PC00022
Sandwell Metropolitan Borough Council,http://www.sandwell.gov.uk/info/200202/performance_and_spending/3233/government_procurement_cards,05-Jul-2018,Housing & Communities,HIGHFIELD HOUSE HO,Neighbourhoods,75,Rents,1819Q02_PC00023
Sandwell Metropolitan Borough Council,http://www.sandwell.gov.uk/info/200202/performance_and_spending/3233/government_procurement_cards,05-Jul-2018,Childrens Services,SAINSBURYS TO YOU 0558,Childrens Services,31.9,Catering Provisions,1819Q02_PC00024
Sandwell Metropolitan Borough Council,http://www.sandwell.gov.uk/info/200202/performance_and_spending/3233/government_procurement_cards,05-Jul-2018,Total Housing Revenue Account,HOWDENS - W/BRMWCH D92,Total Housing Revenue Account,40,Materials & Consumables,1819Q02_PC00025
Sandwell Metropolitan Borough Council,http://www.sandwell.gov.uk/info/200202/performance_and_spending/3233/government_procurement_cards,05-Jul-2018,Corporate Management,Amazon UK Marketplace,Corporate Management,8.79,Printing Stationery&Gen Office,1819Q02_PC00026
Sandwell Metropolitan Borough Council,http://www.sandwell.gov.uk/info/200202/performance_and_spending/3233/government_procurement_cards,05-Jul-2018,Childrens Services,ASDA GROCERIES ONLINE,Childrens Services,54.36,Catering Provisions,1819Q02_PC00027
Sandwell Metropolitan Borough Council,http://www.sandwell.gov.uk/info/200202/performance_and_spending/3233/government_procurement_cards,06-Jul-2018,Housing & Communities,PREMIER INN,Neighbourhoods,145.83,Rents,1819Q02_PC00028
Sandwell Metropolitan Borough Council,http://www.sandwell.gov.uk/info/200202/performance_and_spending/3233/government_procurement_cards,06-Jul-2018,Housing & Communities,PREMIER INN,Neighbourhoods,142.08,Rents,1819Q02_PC00029
Sandwell Metropolitan Borough Council,http://www.sandwell.gov.uk/info/200202/performance_and_spending/3233/government_procurement_cards,06-Jul-2018,Resources (Inc SIU),Amazon EU,Assistant Chief Executive (Excl SIU),299.87,ICT,1819Q02_PC00030
Sandwell Metropolitan Borough Council,http://www.sandwell.gov.uk/info/200202/performance_and_spending/3233/government_procurement_cards,06-Jul-2018,Regeneration & Growth,Amazon EU,Regeneration And The Economy,228.48,Printing Stationery&Gen Office,1819Q02_PC00031
Sandwell Metropolitan Borough Council,http://www.sandwell.gov.uk/info/200202/performance_and_spending/3233/government_procurement_cards,06-Jul-2018,Childrens Services,ASDA STORES LTD 5865,Childrens Services,3.4,Catering Provisions,1819Q02_PC00032
Sandwell Metropolitan Borough Council,http://www.sandwell.gov.uk/info/200202/performance_and_spending/3233/government_procurement_cards,06-Jul-2018,Resources (Inc SIU),Amazon UK Marketplace,Assistant Chief Executive (Excl SIU),29.98,ICT,1819Q02_PC00033
Sandwell Metropolitan Borough Council,http://www.sandwell.gov.uk/info/200202/performance_and_spending/3233/government_procurement_cards,06-Jul-2018,Childrens Services,BREWERS,Childrens Services,14.25,R& M - Building Maint&Imp.,1819Q02_PC00034
Sandwell Metropolitan Borough Council,http://www.sandwell.gov.uk/info/200202/performance_and_spending/3233/government_procurement_cards,06-Jul-2018,Housing & Communities,EDGBASTON PALACE,Neighbourhoods,666.67,Rents,1819Q02_PC00035
Sandwell Metropolitan Borough Council,http://www.sandwell.gov.uk/info/200202/performance_and_spending/3233/government_procurement_cards,06-Jul-2018,Childrens Services,ASDA STORES LTD 5865,Childrens Services,10.84,Catering Provisions,1819Q02_PC00036
Sandwell Metropolitan Borough Council,http://www.sandwell.gov.uk/info/200202/performance_and_spending/3233/government_procurement_cards,06-Jul-2018,Childrens Services,B&Q DIRECT,Childrens Services,133.33,Materials & Consumables,1819Q02_PC00037
Sandwell Metropolitan Borough Council,http://www.sandwell.gov.uk/info/200202/performance_and_spending/3233/government_procurement_cards,06-Jul-2018,Housing & Communities,POUNDLAND LTD 1729,Neighbourhoods,10,Materials & Consumables,1819Q02_PC00038
Sandwell Metropolitan Borough Council,http://www.sandwell.gov.uk/info/200202/performance_and_spending/3233/government_procurement_cards,06-Jul-2018,Housing & Communities,POUNDSTRETCHER 328,Neighbourhoods,7.95,Materials & Consumables,1819Q02_PC00039
Sandwell Metropolitan Borough Council,http://www.sandwell.gov.uk/info/200202/performance_and_spending/3233/government_procurement_cards,06-Jul-2018,Housing & Communities,RAMADA INNS,Neighbourhoods,315.42,Rents,1819Q02_PC00040
Sandwell Metropolitan Borough Council,http://www.sandwell.gov.uk/info/200202/performance_and_spending/3233/government_procurement_cards,09-Jul-2018,Housing & Communities,PREMIER INN,Neighbourhoods,334.58,Rents,1819Q02_PC00041
Sandwell Metropolitan Borough Council,http://www.sandwell.gov.uk/info/200202/performance_and_spending/3233/government_procurement_cards,09-Jul-2018,Housing & Communities,PREMIER INN,Neighbourhoods,62.5,Equipment & Furniture,1819Q02_PC00042
Sandwell Metropolitan Borough Council,http://www.sandwell.gov.uk/info/200202/performance_and_spending/3233/government_procurement_cards,09-Jul-2018,Adult Social Care Health and Wellbeing - Total,PARK INN BIRMINGHAM WE,Total Adult Social Care,604.17,Hire of Facilities,1819Q02_PC00043
Sandwell Metropolitan Borough Council,http://www.sandwell.gov.uk/info/200202/performance_and_spending/3233/government_procurement_cards,09-Jul-2018,Total Housing Revenue Account,SANDWELL & DUD T/O,Total Housing Revenue Account,4.33,Ind. Emp Exp-Staff Dev&Training,1819Q02_PC00044
Sandwell Metropolitan Borough Council,http://www.sandwell.gov.uk/info/200202/performance_and_spending/3233/government_procurement_cards,09-Jul-2018,Individual School Budgets With Inclusion,POUNDLAND LTD 1463,Individual School Budgets With Inclusion,4.17,Catering Provisions,1819Q02_PC00045
Sandwell Metropolitan Borough Council,http://www.sandwell.gov.uk/info/200202/performance_and_spending/3233/government_procurement_cards,09-Jul-2018,Housing & Communities,FORCES SUPPORT CARTERS,Neighbourhoods,20.83,Rents,1819Q02_PC00046
Sandwell Metropolitan Borough Council,http://www.sandwell.gov.uk/info/200202/performance_and_spending/3233/government_procurement_cards,09-Jul-2018,Housing & Communities,HIGHFIELD HOUSE HO,Neighbourhoods,112.5,Rents,1819Q02_PC00047
Sandwell Metropolitan Borough Council,http://www.sandwell.gov.uk/info/200202/performance_and_spending/3233/government_procurement_cards,09-Jul-2018,Housing & Communities,LWC BIRMINGHAM,Neighbourhoods,248.26,Catering Provisions,1819Q02_PC00048
Sandwell Metropolitan Borough Council,http://www.sandwell.gov.uk/info/200202/performance_and_spending/3233/government_procurement_cards,09-Jul-2018,Housing & Communities,BIG CITY BANNERS & SIG,Neighbourhoods,148,R& M - Building Maint&Imp.,1819Q02_PC00049
Sandwell Metropolitan Borough Council,http://www.sandwell.gov.uk/info/200202/performance_and_spending/3233/government_procurement_cards,09-Jul-2018,Individual School Budgets With Inclusion,SANDWELL & DUD T/O,Individual School Budgets With Inclusion,26.1,Public Transport,1819Q02_PC00050
Sandwell Metropolitan Borough Council,http://www.sandwell.gov.uk/info/200202/performance_and_spending/3233/government_procurement_cards,09-Jul-2018,Childrens Services,Trainline,Childrens Services,54.2,Public Transport,1819Q02_PC00051
Sandwell Metropolitan Borough Council,http://www.sandwell.gov.uk/info/200202/performance_and_spending/3233/government_procurement_cards,09-Jul-2018,Adult Social Care Health and Wellbeing - Total,BILL@TRAVEL.CLOUD,Total Adult Social Care,12.7,Public Transport,1819Q02_PC00052
Sandwell Metropolitan Borough Council,http://www.sandwell.gov.uk/info/200202/performance_and_spending/3233/government_procurement_cards,09-Jul-2018,Adult Social Care Health and Wellbeing - Total,BILL@TRAVEL.CLOUD,Total Adult Social Care,201,Public Transport,1819Q02_PC00053
Sandwell Metropolitan Borough Council,http://www.sandwell.gov.uk/info/200202/performance_and_spending/3233/government_procurement_cards,09-Jul-2018,Adult Social Care Health and Wellbeing - Total,BILL@TRAVEL.CLOUD,Total Adult Social Care,12.7,Public Transport,1819Q02_PC00054
Sandwell Metropolitan Borough Council,http://www.sandwell.gov.uk/info/200202/performance_and_spending/3233/government_procurement_cards,09-Jul-2018,Adult Social Care Health and Wellbeing - Total,BILL@TRAVEL.CLOUD,Total Adult Social Care,201,Public Transport,1819Q02_PC00055
Sandwell Metropolitan Borough Council,http://www.sandwell.gov.uk/info/200202/performance_and_spending/3233/government_procurement_cards,09-Jul-2018,Individual School Budgets With Inclusion,AMAZON SVCS EU-UK AMAZ,Individual School Budgets With Inclusion,37.45,Materials & Consumables,1819Q02_PC00056
Sandwell Metropolitan Borough Council,http://www.sandwell.gov.uk/info/200202/performance_and_spending/3233/government_procurement_cards,09-Jul-2018,Housing & Communities,SWAN SERVICE STATI,Neighbourhoods,58.27,Fuel,1819Q02_PC00057
Sandwell Metropolitan Borough Council,http://www.sandwell.gov.uk/info/200202/performance_and_spending/3233/government_procurement_cards,09-Jul-2018,Housing & Communities,TESCO STORES 2335,Neighbourhoods,3.33,Materials & Consumables,1819Q02_PC00058
Sandwell Metropolitan Borough Council,http://www.sandwell.gov.uk/info/200202/performance_and_spending/3233/government_procurement_cards,09-Jul-2018,Housing & Communities,PREMIER INN,Neighbourhoods,172.5,Operational Services,1819Q02_PC00059
Sandwell Metropolitan Borough Council,http://www.sandwell.gov.uk/info/200202/performance_and_spending/3233/government_procurement_cards,09-Jul-2018,Resources (Inc SIU),Elucidate Contractor S,Assistant Chief Executive (Excl SIU),5,Employee Expenses,1819Q02_PC00060
Sandwell Metropolitan Borough Council,http://www.sandwell.gov.uk/info/200202/performance_and_spending/3233/government_procurement_cards,09-Jul-2018,Housing & Communities,RAMADA INNS,Neighbourhoods,132.5,Rents,1819Q02_PC00061
Sandwell Metropolitan Borough Council,http://www.sandwell.gov.uk/info/200202/performance_and_spending/3233/government_procurement_cards,10-Jul-2018,Total Housing Revenue Account,DVLA DIGITAL TACHO,Total Housing Revenue Account,15.83,Licences&Test Fees,1819Q02_PC00062
Sandwell Metropolitan Borough Council,http://www.sandwell.gov.uk/info/200202/performance_and_spending/3233/government_procurement_cards,10-Jul-2018,Housing & Communities,RAMADA INNS,Neighbourhoods,800,Rents,1819Q02_PC00063
Sandwell Metropolitan Borough Council,http://www.sandwell.gov.uk/info/200202/performance_and_spending/3233/government_procurement_cards,10-Jul-2018,Childrens Services,WILKO RETAIL LIMIT,Childrens Services,1.67,Printing Stationery&Gen Office,1819Q02_PC00064
Sandwell Metropolitan Borough Council,http://www.sandwell.gov.uk/info/200202/performance_and_spending/3233/government_procurement_cards,10-Jul-2018,Childrens Services,ASDA STORES 4253,Childrens Services,16.67,Materials & Consumables,1819Q02_PC00065
Sandwell Metropolitan Borough Council,http://www.sandwell.gov.uk/info/200202/performance_and_spending/3233/government_procurement_cards,10-Jul-2018,Childrens Services,PEIRIANWAITH EIFIONYDD,Childrens Services,22.83,Grounds Maint&Improvements,1819Q02_PC00066
Sandwell Metropolitan Borough Council,http://www.sandwell.gov.uk/info/200202/performance_and_spending/3233/government_procurement_cards,10-Jul-2018,Resources (Inc SIU),WILKO.COM,Assistant Chief Executive (Excl SIU),22.92,Printing Stationery&Gen Office,1819Q02_PC00067
Sandwell Metropolitan Borough Council,http://www.sandwell.gov.uk/info/200202/performance_and_spending/3233/government_procurement_cards,10-Jul-2018,Housing & Communities,HIGHFIELD HOUSE HO,Neighbourhoods,233.33,Rents,1819Q02_PC00068
Sandwell Metropolitan Borough Council,http://www.sandwell.gov.uk/info/200202/performance_and_spending/3233/government_procurement_cards,10-Jul-2018,Housing & Communities,HIGHFIELD HOUSE HO,Neighbourhoods,80,Rents,1819Q02_PC00069
Sandwell Metropolitan Borough Council,http://www.sandwell.gov.uk/info/200202/performance_and_spending/3233/government_procurement_cards,10-Jul-2018,Housing & Communities,Amazon UK Marketplace,Neighbourhoods,28.66,Equipment & Furniture,1819Q02_PC00070
Sandwell Metropolitan Borough Council,http://www.sandwell.gov.uk/info/200202/performance_and_spending/3233/government_procurement_cards,10-Jul-2018,Regeneration & Growth,Amazon UK Marketplace,Regeneration And The Economy,86.98,Printing Stationery&Gen Office,1819Q02_PC00071
Sandwell Metropolitan Borough Council,http://www.sandwell.gov.uk/info/200202/performance_and_spending/3233/government_procurement_cards,10-Jul-2018,Childrens Services,GEORGE ROMNEY LTD,Childrens Services,25.83,Catering Provisions,1819Q02_PC00072
Sandwell Metropolitan Borough Council,http://www.sandwell.gov.uk/info/200202/performance_and_spending/3233/government_procurement_cards,10-Jul-2018,Childrens Services,Amazon EU,Childrens Services,104.24,Materials & Consumables,1819Q02_PC00073
Sandwell Metropolitan Borough Council,http://www.sandwell.gov.uk/info/200202/performance_and_spending/3233/government_procurement_cards,10-Jul-2018,Childrens Services,Amazon UK Marketplace,Childrens Services,62.65,Materials & Consumables,1819Q02_PC00074
Sandwell Metropolitan Borough Council,http://www.sandwell.gov.uk/info/200202/performance_and_spending/3233/government_procurement_cards,10-Jul-2018,Childrens Services,London Northwestern Ra,Childrens Services,14.3,Public Transport,1819Q02_PC00075
Sandwell Metropolitan Borough Council,http://www.sandwell.gov.uk/info/200202/performance_and_spending/3233/government_procurement_cards,10-Jul-2018,Adult Social Care Health and Wellbeing - Total,WORD360,Total Adult Social Care,27,Professional Services External,1819Q02_PC00076
Sandwell Metropolitan Borough Council,http://www.sandwell.gov.uk/info/200202/performance_and_spending/3233/government_procurement_cards,10-Jul-2018,Housing & Communities,EDGBASTON PALACE,Neighbourhoods,583.33,Rents,1819Q02_PC00077
Sandwell Metropolitan Borough Council,http://www.sandwell.gov.uk/info/200202/performance_and_spending/3233/government_procurement_cards,10-Jul-2018,Housing & Communities,EDGBASTON PALACE,Neighbourhoods,641.67,Rents,1819Q02_PC00078
Sandwell Metropolitan Borough Council,http://www.sandwell.gov.uk/info/200202/performance_and_spending/3233/government_procurement_cards,11-Jul-2018,Housing & Communities,PREMIER INN,Neighbourhoods,248.75,Rents,1819Q02_PC00079
Sandwell Metropolitan Borough Council,http://www.sandwell.gov.uk/info/200202/performance_and_spending/3233/government_procurement_cards,11-Jul-2018,Housing & Communities,PREMIER INN,Neighbourhoods,515.83,Rents,1819Q02_PC00080
Sandwell Metropolitan Borough Council,http://www.sandwell.gov.uk/info/200202/performance_and_spending/3233/government_procurement_cards,11-Jul-2018,Housing & Communities,PREMIER INN,Neighbourhoods,72.5,Rents,1819Q02_PC00081
Sandwell Metropolitan Borough Council,http://www.sandwell.gov.uk/info/200202/performance_and_spending/3233/government_procurement_cards,11-Jul-2018,Regeneration & Growth,AMZ Amazon.co.uk,Regeneration And The Economy,-42.48,Printing Stationery&Gen Office,1819Q02_PC00082
Sandwell Metropolitan Borough Council,http://www.sandwell.gov.uk/info/200202/performance_and_spending/3233/government_procurement_cards,11-Jul-2018,Childrens Services,YORKSHIRE PURCHASING O,Childrens Services,35.39,Equipment & Furniture,1819Q02_PC00083
Sandwell Metropolitan Borough Council,http://www.sandwell.gov.uk/info/200202/performance_and_spending/3233/government_procurement_cards,11-Jul-2018,Childrens Services,WWW ESPARES CO UK,Childrens Services,78.24,Materials & Consumables,1819Q02_PC00084
Sandwell Metropolitan Borough Council,http://www.sandwell.gov.uk/info/200202/performance_and_spending/3233/government_procurement_cards,11-Jul-2018,Housing & Communities,HIGHFIELD HOUSE HO,Neighbourhoods,682.5,Rents,1819Q02_PC00085
Sandwell Metropolitan Borough Council,http://www.sandwell.gov.uk/info/200202/performance_and_spending/3233/government_procurement_cards,11-Jul-2018,Total Housing Revenue Account,ARECO LTD,Total Housing Revenue Account,225.3,Materials & Consumables,1819Q02_PC00086
Sandwell Metropolitan Borough Council,http://www.sandwell.gov.uk/info/200202/performance_and_spending/3233/government_procurement_cards,11-Jul-2018,Resources (Inc SIU),TIMPSON LTD,Assistant Chief Executive (Excl SIU),12.5,Fixtures & Fittings,1819Q02_PC00087
Sandwell Metropolitan Borough Council,http://www.sandwell.gov.uk/info/200202/performance_and_spending/3233/government_procurement_cards,11-Jul-2018,Childrens Services,CARTRIDGE WORLD,Childrens Services,79.99,Printing Stationery&Gen Office,1819Q02_PC00088
Sandwell Metropolitan Borough Council,http://www.sandwell.gov.uk/info/200202/performance_and_spending/3233/government_procurement_cards,11-Jul-2018,Childrens Services,B & M RETAIL,Childrens Services,13.41,Printing Stationery&Gen Office,1819Q02_PC00089
Sandwell Metropolitan Borough Council,http://www.sandwell.gov.uk/info/200202/performance_and_spending/3233/government_procurement_cards,11-Jul-2018,Housing & Communities,BILL@TRAVEL.CLOUD,Neighbourhoods,125,Public Transport,1819Q02_PC00090
Sandwell Metropolitan Borough Council,http://www.sandwell.gov.uk/info/200202/performance_and_spending/3233/government_procurement_cards,11-Jul-2018,Adult Social Care Health and Wellbeing - Total,BILL@TRAVEL.CLOUD,Total Adult Social Care,176,Public Transport,1819Q02_PC00091
Sandwell Metropolitan Borough Council,http://www.sandwell.gov.uk/info/200202/performance_and_spending/3233/government_procurement_cards,11-Jul-2018,Childrens Services,ASDA GROCERIES ONLINE,Childrens Services,-2.07,Catering Provisions,1819Q02_PC00092
Sandwell Metropolitan Borough Council,http://www.sandwell.gov.uk/info/200202/performance_and_spending/3233/government_procurement_cards,11-Jul-2018,Childrens Services,ASDA GROCERIES ONLINE,Childrens Services,118.55,Catering Provisions,1819Q02_PC00093
Sandwell Metropolitan Borough Council,http://www.sandwell.gov.uk/info/200202/performance_and_spending/3233/government_procurement_cards,11-Jul-2018,Total Housing Revenue Account,Amazon EU,Total Housing Revenue Account,8.37,Grounds Maint&Improvements,1819Q02_PC00094
Sandwell Metropolitan Borough Council,http://www.sandwell.gov.uk/info/200202/performance_and_spending/3233/government_procurement_cards,12-Jul-2018,Housing & Communities,PREMIER INN,Neighbourhoods,79.17,Rents,1819Q02_PC00095
Sandwell Metropolitan Borough Council,http://www.sandwell.gov.uk/info/200202/performance_and_spending/3233/government_procurement_cards,12-Jul-2018,Housing & Communities,PREMIER INN,Neighbourhoods,245.83,Rents,1819Q02_PC00096
Sandwell Metropolitan Borough Council,http://www.sandwell.gov.uk/info/200202/performance_and_spending/3233/government_procurement_cards,12-Jul-2018,Housing & Communities,PREMIER INN,Neighbourhoods,198.33,Rents,1819Q02_PC00097
Sandwell Metropolitan Borough Council,http://www.sandwell.gov.uk/info/200202/performance_and_spending/3233/government_procurement_cards,12-Jul-2018,Childrens Services,ASDA STORES LTD 5865,Childrens Services,0.33,Catering Provisions,1819Q02_PC00098
Sandwell Metropolitan Borough Council,http://www.sandwell.gov.uk/info/200202/performance_and_spending/3233/government_procurement_cards,12-Jul-2018,Childrens Services,EMRYS HOUSE LLP,Childrens Services,37.46,Materials & Consumables,1819Q02_PC00099
Sandwell Metropolitan Borough Council,http://www.sandwell.gov.uk/info/200202/performance_and_spending/3233/government_procurement_cards,12-Jul-2018,Regeneration & Growth,T J MORRIS LTD,Regeneration And The Economy,3.32,Equipment & Furniture,1819Q02_PC00100
Sandwell Metropolitan Borough Council,http://www.sandwell.gov.uk/info/200202/performance_and_spending/3233/government_procurement_cards,12-Jul-2018,Childrens Services,CARPHONE WAREHOUSE,Childrens Services,58.33,Telephones,1819Q02_PC00101
Sandwell Metropolitan Borough Council,http://www.sandwell.gov.uk/info/200202/performance_and_spending/3233/government_procurement_cards,12-Jul-2018,Regeneration & Growth,WWW.ARGOS.CO.UK,Regeneration And The Economy,72.44,Printing Stationery&Gen Office,1819Q02_PC00102
Sandwell Metropolitan Borough Council,http://www.sandwell.gov.uk/info/200202/performance_and_spending/3233/government_procurement_cards,12-Jul-2018,Regeneration & Growth,SMS CONNECTIONS,Regeneration And The Economy,2848,Operational Services,1819Q02_PC00103
Sandwell Metropolitan Borough Council,http://www.sandwell.gov.uk/info/200202/performance_and_spending/3233/government_procurement_cards,12-Jul-2018,Regeneration & Growth,WWW.ARGOS.CO.UK,Regeneration And The Economy,214.12,Operational Services,1819Q02_PC00104
Sandwell Metropolitan Borough Council,http://www.sandwell.gov.uk/info/200202/performance_and_spending/3233/government_procurement_cards,12-Jul-2018,Childrens Services,Amazon Prime,Childrens Services,6.66,Subscriptions,1819Q02_PC00105
Sandwell Metropolitan Borough Council,http://www.sandwell.gov.uk/info/200202/performance_and_spending/3233/government_procurement_cards,12-Jul-2018,Childrens Services,WWW.IRONMONGERYDIRECT.,Childrens Services,46,Equipment & Furniture,1819Q02_PC00106
Sandwell Metropolitan Borough Council,http://www.sandwell.gov.uk/info/200202/performance_and_spending/3233/government_procurement_cards,12-Jul-2018,Childrens Services,HAMDDEN CARAVANS,Childrens Services,11.42,Materials & Consumables,1819Q02_PC00107
Sandwell Metropolitan Borough Council,http://www.sandwell.gov.uk/info/200202/performance_and_spending/3233/government_procurement_cards,12-Jul-2018,Resources (Inc SIU),Trainline,Assistant Chief Executive (Excl SIU),-184.5,Public Transport,1819Q02_PC00108
Sandwell Metropolitan Borough Council,http://www.sandwell.gov.uk/info/200202/performance_and_spending/3233/government_procurement_cards,12-Jul-2018,Childrens Services,ASDA STORES LTD 5865,Childrens Services,7.91,Catering Provisions,1819Q02_PC00109
Sandwell Metropolitan Borough Council,http://www.sandwell.gov.uk/info/200202/performance_and_spending/3233/government_procurement_cards,12-Jul-2018,Resources (Inc SIU),Trainline,Assistant Chief Executive (Excl SIU),184.5,Public Transport,1819Q02_PC00110
Sandwell Metropolitan Borough Council,http://www.sandwell.gov.uk/info/200202/performance_and_spending/3233/government_procurement_cards,12-Jul-2018,Resources (Inc SIU),Trainline,Assistant Chief Executive (Excl SIU),177.5,Public Transport,1819Q02_PC00111
Sandwell Metropolitan Borough Council,http://www.sandwell.gov.uk/info/200202/performance_and_spending/3233/government_procurement_cards,12-Jul-2018,Childrens Services,WLY COMPLETESAVE.CO.UK,Childrens Services,12.5,Catering Management Fee,1819Q02_PC00112
Sandwell Metropolitan Borough Council,http://www.sandwell.gov.uk/info/200202/performance_and_spending/3233/government_procurement_cards,12-Jul-2018,Resources (Inc SIU),BPP PROF EDUCATION,Assistant Chief Executive (Excl SIU),24.17,Ind. Emp Exp-Staff Dev&Training,1819Q02_PC00113
Sandwell Metropolitan Borough Council,http://www.sandwell.gov.uk/info/200202/performance_and_spending/3233/government_procurement_cards,12-Jul-2018,Housing & Communities,ASDA GROCERIES ONLINE,Neighbourhoods,171.17,Catering Provisions,1819Q02_PC00114
Sandwell Metropolitan Borough Council,http://www.sandwell.gov.uk/info/200202/performance_and_spending/3233/government_procurement_cards,12-Jul-2018,Resources (Inc SIU),BPP PROF EDUCATION,Assistant Chief Executive (Excl SIU),61,Ind. Emp Exp-Staff Dev&Training,1819Q02_PC00115
Sandwell Metropolitan Borough Council,http://www.sandwell.gov.uk/info/200202/performance_and_spending/3233/government_procurement_cards,12-Jul-2018,Childrens Services,TESCO STORES 2335,Childrens Services,52.37,Catering Provisions,1819Q02_PC00116
Sandwell Metropolitan Borough Council,http://www.sandwell.gov.uk/info/200202/performance_and_spending/3233/government_procurement_cards,13-Jul-2018,Housing & Communities,PREMIER INN,Neighbourhoods,299.58,Rents,1819Q02_PC00117
Sandwell Metropolitan Borough Council,http://www.sandwell.gov.uk/info/200202/performance_and_spending/3233/government_procurement_cards,13-Jul-2018,Housing & Communities,PREMIER INN,Neighbourhoods,155.42,Rents,1819Q02_PC00118
Sandwell Metropolitan Borough Council,http://www.sandwell.gov.uk/info/200202/performance_and_spending/3233/government_procurement_cards,13-Jul-2018,Regeneration & Growth,ARGOS LTD,Regeneration And The Economy,16.66,R & M - Security,1819Q02_PC00119
Sandwell Metropolitan Borough Council,http://www.sandwell.gov.uk/info/200202/performance_and_spending/3233/government_procurement_cards,13-Jul-2018,Regeneration & Growth,AMAS LTD,Regeneration And The Economy,1.25,Car Parking,1819Q02_PC00120
Sandwell Metropolitan Borough Council,http://www.sandwell.gov.uk/info/200202/performance_and_spending/3233/government_procurement_cards,13-Jul-2018,Childrens Services,ASDA STORES LTD 5865,Childrens Services,1.67,Materials & Consumables,1819Q02_PC00121
Sandwell Metropolitan Borough Council,http://www.sandwell.gov.uk/info/200202/performance_and_spending/3233/government_procurement_cards,13-Jul-2018,Housing & Communities,HIGHFIELD HOUSE HO,Neighbourhoods,133.33,Rents,1819Q02_PC00122
Sandwell Metropolitan Borough Council,http://www.sandwell.gov.uk/info/200202/performance_and_spending/3233/government_procurement_cards,13-Jul-2018,Housing & Communities,TRAVELODGE,Neighbourhoods,195,Rents,1819Q02_PC00123
Sandwell Metropolitan Borough Council,http://www.sandwell.gov.uk/info/200202/performance_and_spending/3233/government_procurement_cards,13-Jul-2018,Adult Social Care Health and Wellbeing - Total,SUK RETAIL LTD,Total Adult Social Care,14.99,Equipment & Furniture,1819Q02_PC00124
Sandwell Metropolitan Borough Council,http://www.sandwell.gov.uk/info/200202/performance_and_spending/3233/government_procurement_cards,13-Jul-2018,Housing & Communities,WWW.FTA.CO.UK,Neighbourhoods,43.95,ICT,1819Q02_PC00125
Sandwell Metropolitan Borough Council,http://www.sandwell.gov.uk/info/200202/performance_and_spending/3233/government_procurement_cards,13-Jul-2018,Childrens Services,GO OUTDOORS,Childrens Services,82.48,Protective Clothing&Uniforms,1819Q02_PC00126
Sandwell Metropolitan Borough Council,http://www.sandwell.gov.uk/info/200202/performance_and_spending/3233/government_procurement_cards,13-Jul-2018,Total Housing Revenue Account,Amazon UK Marketplace,Total Housing Revenue Account,20.39,Materials & Consumables,1819Q02_PC00127
Sandwell Metropolitan Borough Council,http://www.sandwell.gov.uk/info/200202/performance_and_spending/3233/government_procurement_cards,13-Jul-2018,Resources (Inc SIU),Amazon EU,Assistant Chief Executive (Excl SIU),124.99,ICT,1819Q02_PC00128
Sandwell Metropolitan Borough Council,http://www.sandwell.gov.uk/info/200202/performance_and_spending/3233/government_procurement_cards,13-Jul-2018,Housing & Communities,AMAZON SVCS EU-UK AMAZ,Neighbourhoods,33.32,ICT,1819Q02_PC00129
Sandwell Metropolitan Borough Council,http://www.sandwell.gov.uk/info/200202/performance_and_spending/3233/government_procurement_cards,13-Jul-2018,Housing & Communities,TRAVELODGE,Neighbourhoods,44.17,Rents,1819Q02_PC00130
Sandwell Metropolitan Borough Council,http://www.sandwell.gov.uk/info/200202/performance_and_spending/3233/government_procurement_cards,13-Jul-2018,Resources (Inc SIU),WWW.THELAWSOCIETY.ORG,Assistant Chief Executive (Excl SIU),54,Ind. Emp Exp-Staff Dev&Training,1819Q02_PC00131
Sandwell Metropolitan Borough Council,http://www.sandwell.gov.uk/info/200202/performance_and_spending/3233/government_procurement_cards,13-Jul-2018,Childrens Services,ASDA STORES LTD 5865,Childrens Services,1.5,Materials & Consumables,1819Q02_PC00132
Sandwell Metropolitan Borough Council,http://www.sandwell.gov.uk/info/200202/performance_and_spending/3233/government_procurement_cards,13-Jul-2018,Total Housing Revenue Account,Trainline,Total Housing Revenue Account,11.35,Public Transport,1819Q02_PC00133
Sandwell Metropolitan Borough Council,http://www.sandwell.gov.uk/info/200202/performance_and_spending/3233/government_procurement_cards,13-Jul-2018,Individual School Budgets With Inclusion,Amazon UK Marketplace,Individual School Budgets With Inclusion,16.47,ICT,1819Q02_PC00134
Sandwell Metropolitan Borough Council,http://www.sandwell.gov.uk/info/200202/performance_and_spending/3233/government_procurement_cards,13-Jul-2018,Resources (Inc SIU),Trainline,Assistant Chief Executive (Excl SIU),11.35,Public Transport,1819Q02_PC00135
Sandwell Metropolitan Borough Council,http://www.sandwell.gov.uk/info/200202/performance_and_spending/3233/government_procurement_cards,13-Jul-2018,Resources (Inc SIU),Trainline,Assistant Chief Executive (Excl SIU),11.35,Public Transport,1819Q02_PC00136
Sandwell Metropolitan Borough Council,http://www.sandwell.gov.uk/info/200202/performance_and_spending/3233/government_procurement_cards,13-Jul-2018,Housing & Communities,ASDA SUPERSTORE,Neighbourhoods,17.79,Catering Provisions,1819Q02_PC00137
Sandwell Metropolitan Borough Council,http://www.sandwell.gov.uk/info/200202/performance_and_spending/3233/government_procurement_cards,13-Jul-2018,Childrens Services,BROXAP LTD,Childrens Services,175,Grounds Maint&Improvements,1819Q02_PC00138
Sandwell Metropolitan Borough Council,http://www.sandwell.gov.uk/info/200202/performance_and_spending/3233/government_procurement_cards,13-Jul-2018,Housing & Communities,PP CHARTLEY CHUCKS,Neighbourhoods,40,Materials & Consumables,1819Q02_PC00139
Sandwell Metropolitan Borough Council,http://www.sandwell.gov.uk/info/200202/performance_and_spending/3233/government_procurement_cards,13-Jul-2018,Childrens Services,SAINSBURYS SACAT0558,Childrens Services,6.67,Materials & Consumables,1819Q02_PC00140
Sandwell Metropolitan Borough Council,http://www.sandwell.gov.uk/info/200202/performance_and_spending/3233/government_procurement_cards,13-Jul-2018,Childrens Services,WWW.SAFELINCS.CO.UK,Childrens Services,66.49,Materials & Consumables,1819Q02_PC00141
Sandwell Metropolitan Borough Council,http://www.sandwell.gov.uk/info/200202/performance_and_spending/3233/government_procurement_cards,16-Jul-2018,Total Housing Revenue Account,BONINGALE NURSERIE,Total Housing Revenue Account,25,Grounds Maint&Improvements,1819Q02_PC00142
Sandwell Metropolitan Borough Council,http://www.sandwell.gov.uk/info/200202/performance_and_spending/3233/government_procurement_cards,16-Jul-2018,Childrens Services,B & M RETAIL,Childrens Services,17.93,Printing Stationery&Gen Office,1819Q02_PC00143
Sandwell Metropolitan Borough Council,http://www.sandwell.gov.uk/info/200202/performance_and_spending/3233/government_procurement_cards,16-Jul-2018,Regeneration & Growth,Amazon EU,Regeneration And The Economy,213.47,Cleaning,1819Q02_PC00144
Sandwell Metropolitan Borough Council,http://www.sandwell.gov.uk/info/200202/performance_and_spending/3233/government_procurement_cards,16-Jul-2018,Adult Social Care Health and Wellbeing - Total,PINNACLE WORKWEAR,Total Adult Social Care,902.5,Protective Clothing&Uniforms,1819Q02_PC00145
Sandwell Metropolitan Borough Council,http://www.sandwell.gov.uk/info/200202/performance_and_spending/3233/government_procurement_cards,16-Jul-2018,Regeneration & Growth,Amazon EU,Regeneration And The Economy,133.32,Cleaning,1819Q02_PC00146
Sandwell Metropolitan Borough Council,http://www.sandwell.gov.uk/info/200202/performance_and_spending/3233/government_procurement_cards,16-Jul-2018,Adult Social Care Health and Wellbeing - Total,DIGITAL EXCHANGE PRODU,Total Adult Social Care,285,Telephones,1819Q02_PC00147
Sandwell Metropolitan Borough Council,http://www.sandwell.gov.uk/info/200202/performance_and_spending/3233/government_procurement_cards,16-Jul-2018,Housing & Communities,PREMIER INN,Neighbourhoods,174.17,Rents,1819Q02_PC00148
Sandwell Metropolitan Borough Council,http://www.sandwell.gov.uk/info/200202/performance_and_spending/3233/government_procurement_cards,16-Jul-2018,Total Housing Revenue Account,Amazon UK Marketplace,Total Housing Revenue Account,86.04,Materials & Consumables,1819Q02_PC00149
Sandwell Metropolitan Borough Council,http://www.sandwell.gov.uk/info/200202/performance_and_spending/3233/government_procurement_cards,16-Jul-2018,Housing & Communities,PREMIER INN,Neighbourhoods,178.33,Rents,1819Q02_PC00150
Sandwell Metropolitan Borough Council,http://www.sandwell.gov.uk/info/200202/performance_and_spending/3233/government_procurement_cards,16-Jul-2018,Housing & Communities,POUNDWORLD RETAIL,Neighbourhoods,25.75,Materials & Consumables,1819Q02_PC00151
Sandwell Metropolitan Borough Council,http://www.sandwell.gov.uk/info/200202/performance_and_spending/3233/government_procurement_cards,16-Jul-2018,Housing & Communities,W M MORRISON PLC,Neighbourhoods,4,Catering Provisions,1819Q02_PC00152
Sandwell Metropolitan Borough Council,http://www.sandwell.gov.uk/info/200202/performance_and_spending/3233/government_procurement_cards,16-Jul-2018,Resources (Inc SIU),HMCOURT-SERVICES.G,Assistant Chief Executive (Excl SIU),220,Rent Allowances Local Scheme,1819Q02_PC00153
Sandwell Metropolitan Borough Council,http://www.sandwell.gov.uk/info/200202/performance_and_spending/3233/government_procurement_cards,16-Jul-2018,Housing & Communities,Trainline,Neighbourhoods,32.8,Public Transport,1819Q02_PC00154
Sandwell Metropolitan Borough Council,http://www.sandwell.gov.uk/info/200202/performance_and_spending/3233/government_procurement_cards,16-Jul-2018,Housing & Communities,EDGBASTON PALACE,Neighbourhoods,641.67,Rents,1819Q02_PC00155
Sandwell Metropolitan Borough Council,http://www.sandwell.gov.uk/info/200202/performance_and_spending/3233/government_procurement_cards,16-Jul-2018,Childrens Services,SAINSBURYS SACAT0558,Childrens Services,8.75,Transport Costs,1819Q02_PC00156
Sandwell Metropolitan Borough Council,http://www.sandwell.gov.uk/info/200202/performance_and_spending/3233/government_procurement_cards,16-Jul-2018,Childrens Services,Amazon UK Marketplace,Childrens Services,41.62,Protective Clothing&Uniforms,1819Q02_PC00157
Sandwell Metropolitan Borough Council,http://www.sandwell.gov.uk/info/200202/performance_and_spending/3233/government_procurement_cards,16-Jul-2018,Childrens Services,Amazon UK Marketplace,Childrens Services,48.29,Protective Clothing&Uniforms,1819Q02_PC00158
Sandwell Metropolitan Borough Council,http://www.sandwell.gov.uk/info/200202/performance_and_spending/3233/government_procurement_cards,16-Jul-2018,Housing & Communities,RAMADA INNS,Neighbourhoods,309.17,Rents,1819Q02_PC00159
Sandwell Metropolitan Borough Council,http://www.sandwell.gov.uk/info/200202/performance_and_spending/3233/government_procurement_cards,16-Jul-2018,Childrens Services,Spotify P06B5C6065,Childrens Services,8.32,Materials & Consumables,1819Q02_PC00160
Sandwell Metropolitan Borough Council,http://www.sandwell.gov.uk/info/200202/performance_and_spending/3233/government_procurement_cards,17-Jul-2018,Childrens Services,Amazon Prime,Childrens Services,-6.66,Subscriptions,1819Q02_PC00161
Sandwell Metropolitan Borough Council,http://www.sandwell.gov.uk/info/200202/performance_and_spending/3233/government_procurement_cards,17-Jul-2018,Childrens Services,ASDA STORES 4253,Childrens Services,4.75,Materials & Consumables,1819Q02_PC00162
Sandwell Metropolitan Borough Council,http://www.sandwell.gov.uk/info/200202/performance_and_spending/3233/government_procurement_cards,17-Jul-2018,Adult Social Care Health and Wellbeing - Total,Amazon UK Marketplace,Total Adult Social Care,12.47,ICT,1819Q02_PC00163
Sandwell Metropolitan Borough Council,http://www.sandwell.gov.uk/info/200202/performance_and_spending/3233/government_procurement_cards,17-Jul-2018,Childrens Services,MILLETS,Childrens Services,228.67,Materials & Consumables,1819Q02_PC00164
Sandwell Metropolitan Borough Council,http://www.sandwell.gov.uk/info/200202/performance_and_spending/3233/government_procurement_cards,17-Jul-2018,Housing & Communities,TRAVELODGE,Neighbourhoods,57.5,Rents,1819Q02_PC00165
Sandwell Metropolitan Borough Council,http://www.sandwell.gov.uk/info/200202/performance_and_spending/3233/government_procurement_cards,17-Jul-2018,Housing & Communities,TRAVELODGE,Neighbourhoods,451.67,Rents,1819Q02_PC00166
Sandwell Metropolitan Borough Council,http://www.sandwell.gov.uk/info/200202/performance_and_spending/3233/government_procurement_cards,17-Jul-2018,Total Housing Revenue Account,WWW.KANE.CO.UK,Total Housing Revenue Account,71.4,Equipment & Furniture,1819Q02_PC00167
Sandwell Metropolitan Borough Council,http://www.sandwell.gov.uk/info/200202/performance_and_spending/3233/government_procurement_cards,17-Jul-2018,Childrens Services,ASDA SUPERSTORE 04236,Childrens Services,3.33,Equipment & Furniture,1819Q02_PC00168
Sandwell Metropolitan Borough Council,http://www.sandwell.gov.uk/info/200202/performance_and_spending/3233/government_procurement_cards,17-Jul-2018,Resources (Inc SIU),SP   THELASERENGRAVING,Assistant Chief Executive (Excl SIU),11.98,Civic Events,1819Q02_PC00169
Sandwell Metropolitan Borough Council,http://www.sandwell.gov.uk/info/200202/performance_and_spending/3233/government_procurement_cards,17-Jul-2018,Childrens Services,Trainline,Childrens Services,124.9,Public Transport,1819Q02_PC00170
Sandwell Metropolitan Borough Council,http://www.sandwell.gov.uk/info/200202/performance_and_spending/3233/government_procurement_cards,17-Jul-2018,Housing & Communities,LIDL UK  WEDNESBURY,Neighbourhoods,6.11,Catering Provisions,1819Q02_PC00171
Sandwell Metropolitan Borough Council,http://www.sandwell.gov.uk/info/200202/performance_and_spending/3233/government_procurement_cards,17-Jul-2018,Housing & Communities,WWW.GRAVELMASTER.C,Neighbourhoods,86,Materials & Consumables,1819Q02_PC00172
Sandwell Metropolitan Borough Council,http://www.sandwell.gov.uk/info/200202/performance_and_spending/3233/government_procurement_cards,17-Jul-2018,Childrens Services,ASDA SUPERSTORE 04236,Childrens Services,5.79,Catering Provisions,1819Q02_PC00173
Sandwell Metropolitan Borough Council,http://www.sandwell.gov.uk/info/200202/performance_and_spending/3233/government_procurement_cards,17-Jul-2018,Housing & Communities,ASDA SUPERSTORE,Neighbourhoods,21.25,Catering Provisions,1819Q02_PC00174
Sandwell Metropolitan Borough Council,http://www.sandwell.gov.uk/info/200202/performance_and_spending/3233/government_procurement_cards,18-Jul-2018,Housing & Communities,PREMIER INN,Neighbourhoods,191.67,Rents,1819Q02_PC00175
Sandwell Metropolitan Borough Council,http://www.sandwell.gov.uk/info/200202/performance_and_spending/3233/government_procurement_cards,18-Jul-2018,Housing & Communities,PREMIER INN,Neighbourhoods,268.33,Rents,1819Q02_PC00176
Sandwell Metropolitan Borough Council,http://www.sandwell.gov.uk/info/200202/performance_and_spending/3233/government_procurement_cards,18-Jul-2018,Childrens Services,ASDA STORES 4253,Childrens Services,20,Catering Provisions,1819Q02_PC00177
Sandwell Metropolitan Borough Council,http://www.sandwell.gov.uk/info/200202/performance_and_spending/3233/government_procurement_cards,18-Jul-2018,Housing & Communities,AQUAID FRANCHISING LTD,Neighbourhoods,442,Catering Provisions,1819Q02_PC00178
Sandwell Metropolitan Borough Council,http://www.sandwell.gov.uk/info/200202/performance_and_spending/3233/government_procurement_cards,18-Jul-2018,Housing & Communities,HIGHFIELD HOUSE HO,Neighbourhoods,682.5,Rents,1819Q02_PC00179
Sandwell Metropolitan Borough Council,http://www.sandwell.gov.uk/info/200202/performance_and_spending/3233/government_procurement_cards,18-Jul-2018,Housing & Communities,HIGHFIELD HOUSE HO,Neighbourhoods,16.67,Rents,1819Q02_PC00180
Sandwell Metropolitan Borough Council,http://www.sandwell.gov.uk/info/200202/performance_and_spending/3233/government_procurement_cards,18-Jul-2018,Housing & Communities,HIGHFIELD HOUSE HO,Neighbourhoods,13.33,Rents,1819Q02_PC00181
Sandwell Metropolitan Borough Council,http://www.sandwell.gov.uk/info/200202/performance_and_spending/3233/government_procurement_cards,18-Jul-2018,Regeneration & Growth,WWW.MOVERSANDSHAKERS.U,Regeneration And The Economy,175,Conference Expenses,1819Q02_PC00182
Sandwell Metropolitan Borough Council,http://www.sandwell.gov.uk/info/200202/performance_and_spending/3233/government_procurement_cards,18-Jul-2018,Regeneration & Growth,WWW.MOVERSANDSHAKERS.U,Regeneration And The Economy,175,Conference Expenses,1819Q02_PC00183
Sandwell Metropolitan Borough Council,http://www.sandwell.gov.uk/info/200202/performance_and_spending/3233/government_procurement_cards,18-Jul-2018,Housing & Communities,.UKGARDENSUPPLIES.,Neighbourhoods,37.47,Materials & Consumables,1819Q02_PC00184
Sandwell Metropolitan Borough Council,http://www.sandwell.gov.uk/info/200202/performance_and_spending/3233/government_procurement_cards,18-Jul-2018,Childrens Services,ACE EMBROIDERY LTD,Childrens Services,41.8,Protective Clothing&Uniforms,1819Q02_PC00185
Sandwell Metropolitan Borough Council,http://www.sandwell.gov.uk/info/200202/performance_and_spending/3233/government_procurement_cards,18-Jul-2018,Resources (Inc SIU),RAMADA INNS,Assistant Chief Executive (Excl SIU),161.67,Hire of Facilities,1819Q02_PC00186
Sandwell Metropolitan Borough Council,http://www.sandwell.gov.uk/info/200202/performance_and_spending/3233/government_procurement_cards,18-Jul-2018,Housing & Communities,WWW.RISUSWHOLESALE,Neighbourhoods,35.95,Materials & Consumables,1819Q02_PC00187
Sandwell Metropolitan Borough Council,http://www.sandwell.gov.uk/info/200202/performance_and_spending/3233/government_procurement_cards,18-Jul-2018,Regeneration & Growth,CHARTER OFFICE EQU,Regeneration And The Economy,265,Equipment & Furniture,1819Q02_PC00188
Sandwell Metropolitan Borough Council,http://www.sandwell.gov.uk/info/200202/performance_and_spending/3233/government_procurement_cards,18-Jul-2018,Resources (Inc SIU),Amazon UK Marketplace,Assistant Chief Executive (Excl SIU),26.62,Equipment & Furniture,1819Q02_PC00189
Sandwell Metropolitan Borough Council,http://www.sandwell.gov.uk/info/200202/performance_and_spending/3233/government_procurement_cards,18-Jul-2018,Housing & Communities,EDGBASTON PALACE,Neighbourhoods,250,Rents,1819Q02_PC00190
Sandwell Metropolitan Borough Council,http://www.sandwell.gov.uk/info/200202/performance_and_spending/3233/government_procurement_cards,18-Jul-2018,Resources (Inc SIU),SANDWELL M.B.C.,Assistant Chief Executive (Excl SIU),-1,ICT,1819Q02_PC00191
Sandwell Metropolitan Borough Council,http://www.sandwell.gov.uk/info/200202/performance_and_spending/3233/government_procurement_cards,18-Jul-2018,Resources (Inc SIU),WWW.SANDWELL.GOV.UK,Assistant Chief Executive (Excl SIU),1,ICT,1819Q02_PC00192
Sandwell Metropolitan Borough Council,http://www.sandwell.gov.uk/info/200202/performance_and_spending/3233/government_procurement_cards,18-Jul-2018,Resources (Inc SIU),SANDWELL M.B.C.,Assistant Chief Executive (Excl SIU),-244,ICT,1819Q02_PC00193
Sandwell Metropolitan Borough Council,http://www.sandwell.gov.uk/info/200202/performance_and_spending/3233/government_procurement_cards,18-Jul-2018,Resources (Inc SIU),SANDWELL M.B.C.,Assistant Chief Executive (Excl SIU),-13,ICT,1819Q02_PC00194
Sandwell Metropolitan Borough Council,http://www.sandwell.gov.uk/info/200202/performance_and_spending/3233/government_procurement_cards,18-Jul-2018,Resources (Inc SIU),SANDWELL M.B.C.,Assistant Chief Executive (Excl SIU),-195.7,ICT,1819Q02_PC00195
Sandwell Metropolitan Borough Council,http://www.sandwell.gov.uk/info/200202/performance_and_spending/3233/government_procurement_cards,18-Jul-2018,Resources (Inc SIU),SANDWELL M.B.C.,Assistant Chief Executive (Excl SIU),-1,ICT,1819Q02_PC00196
Sandwell Metropolitan Borough Council,http://www.sandwell.gov.uk/info/200202/performance_and_spending/3233/government_procurement_cards,18-Jul-2018,Resources (Inc SIU),SANDWELL M.B.C.,Assistant Chief Executive (Excl SIU),1,ICT,1819Q02_PC00197
Sandwell Metropolitan Borough Council,http://www.sandwell.gov.uk/info/200202/performance_and_spending/3233/government_procurement_cards,18-Jul-2018,Childrens Services,HOME BARGAINS,Childrens Services,8.01,Catering Provisions,1819Q02_PC00198
Sandwell Metropolitan Borough Council,http://www.sandwell.gov.uk/info/200202/performance_and_spending/3233/government_procurement_cards,18-Jul-2018,Housing & Communities,DVSA MOT COMP 2,Neighbourhoods,287,Licences&Test Fees,1819Q02_PC00199
Sandwell Metropolitan Borough Council,http://www.sandwell.gov.uk/info/200202/performance_and_spending/3233/government_procurement_cards,18-Jul-2018,Housing & Communities,DVSA MOT COMP 2,Neighbourhoods,287,Licences&Test Fees,1819Q02_PC00200
Sandwell Metropolitan Borough Council,http://www.sandwell.gov.uk/info/200202/performance_and_spending/3233/government_procurement_cards,18-Jul-2018,Childrens Services,ASDA STORES 4253,Childrens Services,39.18,Catering Provisions,1819Q02_PC00201
Sandwell Metropolitan Borough Council,http://www.sandwell.gov.uk/info/200202/performance_and_spending/3233/government_procurement_cards,18-Jul-2018,Resources (Inc SIU),HMCOURTS-SERVICE.G,Assistant Chief Executive (Excl SIU),1767,Council Tax,1819Q02_PC00202
Sandwell Metropolitan Borough Council,http://www.sandwell.gov.uk/info/200202/performance_and_spending/3233/government_procurement_cards,18-Jul-2018,Adult Social Care Health and Wellbeing - Total,Amazon UK Marketplace,Total Adult Social Care,7.49,ICT,1819Q02_PC00203
Sandwell Metropolitan Borough Council,http://www.sandwell.gov.uk/info/200202/performance_and_spending/3233/government_procurement_cards,18-Jul-2018,Adult Social Care Health and Wellbeing - Total,Amazon UK Marketplace,Total Adult Social Care,7.81,ICT,1819Q02_PC00204
Sandwell Metropolitan Borough Council,http://www.sandwell.gov.uk/info/200202/performance_and_spending/3233/government_procurement_cards,18-Jul-2018,Childrens Services,POST OFFICE COUNTER,Childrens Services,6.5,"Postages, Carriage & Courier Services",1819Q02_PC00205
Sandwell Metropolitan Borough Council,http://www.sandwell.gov.uk/info/200202/performance_and_spending/3233/government_procurement_cards,18-Jul-2018,Childrens Services,POST OFFICE COUNTER,Childrens Services,40.2,"Postages, Carriage & Courier Services",1819Q02_PC00206
Sandwell Metropolitan Borough Council,http://www.sandwell.gov.uk/info/200202/performance_and_spending/3233/government_procurement_cards,18-Jul-2018,Resources (Inc SIU),WWW.SANDWELL.GOV.UK,Assistant Chief Executive (Excl SIU),244,ICT,1819Q02_PC00207
Sandwell Metropolitan Borough Council,http://www.sandwell.gov.uk/info/200202/performance_and_spending/3233/government_procurement_cards,18-Jul-2018,Resources (Inc SIU),WWW.SANDWELL.GOV.UK,Assistant Chief Executive (Excl SIU),13,ICT,1819Q02_PC00208
Sandwell Metropolitan Borough Council,http://www.sandwell.gov.uk/info/200202/performance_and_spending/3233/government_procurement_cards,18-Jul-2018,Resources (Inc SIU),WWW.SANDWELL.GOV.UK,Assistant Chief Executive (Excl SIU),195.7,ICT,1819Q02_PC00209
Sandwell Metropolitan Borough Council,http://www.sandwell.gov.uk/info/200202/performance_and_spending/3233/government_procurement_cards,18-Jul-2018,Childrens Services,WLY COMPLETESAVE.CO.UK,Childrens Services,-12.5,Catering Management Fee,1819Q02_PC00210
Sandwell Metropolitan Borough Council,http://www.sandwell.gov.uk/info/200202/performance_and_spending/3233/government_procurement_cards,18-Jul-2018,Housing & Communities,PAYPAL  KAYFASTLIMI,Neighbourhoods,37.82,Fixtures & Fittings,1819Q02_PC00211
Sandwell Metropolitan Borough Council,http://www.sandwell.gov.uk/info/200202/performance_and_spending/3233/government_procurement_cards,18-Jul-2018,Housing & Communities,PAYPAL  BAMFORDTRAD,Neighbourhoods,6.35,Equipment & Furniture,1819Q02_PC00212
Sandwell Metropolitan Borough Council,http://www.sandwell.gov.uk/info/200202/performance_and_spending/3233/government_procurement_cards,18-Jul-2018,Housing & Communities,PAYPAL  ASTLEYCOMPO,Neighbourhoods,30,Fixtures & Fittings,1819Q02_PC00213
Sandwell Metropolitan Borough Council,http://www.sandwell.gov.uk/info/200202/performance_and_spending/3233/government_procurement_cards,18-Jul-2018,Housing & Communities,PAYPAL  ELIXGARDSUP,Neighbourhoods,32.89,Equipment & Furniture,1819Q02_PC00214
Sandwell Metropolitan Borough Council,http://www.sandwell.gov.uk/info/200202/performance_and_spending/3233/government_procurement_cards,18-Jul-2018,Housing & Communities,PAYPAL  NO1BETTERLI,Neighbourhoods,3.74,Equipment & Furniture,1819Q02_PC00215
Sandwell Metropolitan Borough Council,http://www.sandwell.gov.uk/info/200202/performance_and_spending/3233/government_procurement_cards,18-Jul-2018,Resources (Inc SIU),SANDWELL M.B.C.,Assistant Chief Executive (Excl SIU),-98,Professional Services External,1819Q02_PC00216
Sandwell Metropolitan Borough Council,http://www.sandwell.gov.uk/info/200202/performance_and_spending/3233/government_procurement_cards,18-Jul-2018,Resources (Inc SIU),SANDWELL M.B.C.,Assistant Chief Executive (Excl SIU),1,Professional Services External,1819Q02_PC00217
Sandwell Metropolitan Borough Council,http://www.sandwell.gov.uk/info/200202/performance_and_spending/3233/government_procurement_cards,18-Jul-2018,Resources (Inc SIU),SANDWELL M.B.C.,Assistant Chief Executive (Excl SIU),-35,Professional Services External,1819Q02_PC00218
Sandwell Metropolitan Borough Council,http://www.sandwell.gov.uk/info/200202/performance_and_spending/3233/government_procurement_cards,18-Jul-2018,Resources (Inc SIU),SANDWELL M.B.C.,Assistant Chief Executive (Excl SIU),-195,Professional Services External,1819Q02_PC00219
Sandwell Metropolitan Borough Council,http://www.sandwell.gov.uk/info/200202/performance_and_spending/3233/government_procurement_cards,18-Jul-2018,Resources (Inc SIU),SANDWELL M.B.C.,Assistant Chief Executive (Excl SIU),-2,Professional Services External,1819Q02_PC00220
Sandwell Metropolitan Borough Council,http://www.sandwell.gov.uk/info/200202/performance_and_spending/3233/government_procurement_cards,18-Jul-2018,Resources (Inc SIU),SANDWELL M.B.C.,Assistant Chief Executive (Excl SIU),-1,Professional Services External,1819Q02_PC00221
Sandwell Metropolitan Borough Council,http://www.sandwell.gov.uk/info/200202/performance_and_spending/3233/government_procurement_cards,18-Jul-2018,Resources (Inc SIU),WWW.SANDWELL.GOV.UK,Assistant Chief Executive (Excl SIU),98,Professional Services External,1819Q02_PC00222
Sandwell Metropolitan Borough Council,http://www.sandwell.gov.uk/info/200202/performance_and_spending/3233/government_procurement_cards,18-Jul-2018,Resources (Inc SIU),WWW.SANDWELL.GOV.UK,Assistant Chief Executive (Excl SIU),35,Professional Services External,1819Q02_PC00223
Sandwell Metropolitan Borough Council,http://www.sandwell.gov.uk/info/200202/performance_and_spending/3233/government_procurement_cards,18-Jul-2018,Resources (Inc SIU),WWW.SANDWELL.GOV.UK,Assistant Chief Executive (Excl SIU),195,Professional Services External,1819Q02_PC00224
Sandwell Metropolitan Borough Council,http://www.sandwell.gov.uk/info/200202/performance_and_spending/3233/government_procurement_cards,18-Jul-2018,Resources (Inc SIU),WWW.SANDWELL.GOV.UK,Assistant Chief Executive (Excl SIU),2,Professional Services External,1819Q02_PC00225
Sandwell Metropolitan Borough Council,http://www.sandwell.gov.uk/info/200202/performance_and_spending/3233/government_procurement_cards,18-Jul-2018,Resources (Inc SIU),AMAZON SVCS EU-UK AMAZ,Assistant Chief Executive (Excl SIU),39.21,Professional Services External,1819Q02_PC00226
Sandwell Metropolitan Borough Council,http://www.sandwell.gov.uk/info/200202/performance_and_spending/3233/government_procurement_cards,18-Jul-2018,Housing & Communities,EDGBASTON PALACE,Neighbourhoods,87.5,Rents,1819Q02_PC00227
Sandwell Metropolitan Borough Council,http://www.sandwell.gov.uk/info/200202/performance_and_spending/3233/government_procurement_cards,18-Jul-2018,Housing & Communities,EDGBASTON PALACE,Neighbourhoods,83.33,Rents,1819Q02_PC00228
Sandwell Metropolitan Borough Council,http://www.sandwell.gov.uk/info/200202/performance_and_spending/3233/government_procurement_cards,19-Jul-2018,Resources (Inc SIU),SANDWELL M.B.C.,Assistant Chief Executive (Excl SIU),-44.62,ICT,1819Q02_PC00229
Sandwell Metropolitan Borough Council,http://www.sandwell.gov.uk/info/200202/performance_and_spending/3233/government_procurement_cards,19-Jul-2018,Resources (Inc SIU),SANDWELL M.B.C.,Assistant Chief Executive (Excl SIU),-92.7,ICT,1819Q02_PC00230
Sandwell Metropolitan Borough Council,http://www.sandwell.gov.uk/info/200202/performance_and_spending/3233/government_procurement_cards,19-Jul-2018,Regeneration & Growth,NCP BIRMINGHAM AIRPORT,Regeneration And The Economy,34.16,Car Parking,1819Q02_PC00231
Sandwell Metropolitan Borough Council,http://www.sandwell.gov.uk/info/200202/performance_and_spending/3233/government_procurement_cards,19-Jul-2018,Resources (Inc SIU),WWW.SANDWELL.GOV.UK,Assistant Chief Executive (Excl SIU),92.7,ICT,1819Q02_PC00232
Sandwell Metropolitan Borough Council,http://www.sandwell.gov.uk/info/200202/performance_and_spending/3233/government_procurement_cards,19-Jul-2018,Resources (Inc SIU),WWW.SANDWELL.GOV.UK,Assistant Chief Executive (Excl SIU),44.62,ICT,1819Q02_PC00233
Sandwell Metropolitan Borough Council,http://www.sandwell.gov.uk/info/200202/performance_and_spending/3233/government_procurement_cards,19-Jul-2018,Individual School Budgets With Inclusion,AMAZON SVCS EU-UK AMAZ,Individual School Budgets With Inclusion,33.32,Telephones,1819Q02_PC00234
Sandwell Metropolitan Borough Council,http://www.sandwell.gov.uk/info/200202/performance_and_spending/3233/government_procurement_cards,19-Jul-2018,Resources (Inc SIU),CATERERS SUPPLIES LTD,Assistant Chief Executive (Excl SIU),14,Printing Stationery&Gen Office,1819Q02_PC00235
Sandwell Metropolitan Borough Council,http://www.sandwell.gov.uk/info/200202/performance_and_spending/3233/government_procurement_cards,19-Jul-2018,Regeneration & Growth,FASTPAK,Regeneration And The Economy,7.14,Equipment & Furniture,1819Q02_PC00236
Sandwell Metropolitan Borough Council,http://www.sandwell.gov.uk/info/200202/performance_and_spending/3233/government_procurement_cards,19-Jul-2018,Resources (Inc SIU),RAMADA INNS,Assistant Chief Executive (Excl SIU),12.5,Hire of Facilities,1819Q02_PC00237
Sandwell Metropolitan Borough Council,http://www.sandwell.gov.uk/info/200202/performance_and_spending/3233/government_procurement_cards,19-Jul-2018,Housing & Communities,C G L (MIDLANDS),Neighbourhoods,1223.6,Equipment & Furniture,1819Q02_PC00238
Sandwell Metropolitan Borough Council,http://www.sandwell.gov.uk/info/200202/performance_and_spending/3233/government_procurement_cards,19-Jul-2018,Childrens Services,POST OFFICE COUNTER,Childrens Services,2.87,"Postages, Carriage & Courier Services",1819Q02_PC00239
Sandwell Metropolitan Borough Council,http://www.sandwell.gov.uk/info/200202/performance_and_spending/3233/government_procurement_cards,19-Jul-2018,Housing & Communities,CREST MEDICAL LTD,Neighbourhoods,119.45,Equipment & Furniture,1819Q02_PC00240
Sandwell Metropolitan Borough Council,http://www.sandwell.gov.uk/info/200202/performance_and_spending/3233/government_procurement_cards,19-Jul-2018,Regeneration & Growth,WWW.PLUMBERS-MATE.CO.U,Regeneration And The Economy,60.58,R& M - Building Maint&Imp.,1819Q02_PC00241
Sandwell Metropolitan Borough Council,http://www.sandwell.gov.uk/info/200202/performance_and_spending/3233/government_procurement_cards,19-Jul-2018,Resources (Inc SIU),AMAZON SVCS EU-UK AMAZ,Assistant Chief Executive (Excl SIU),9.99,Printing Stationery&Gen Office,1819Q02_PC00242
Sandwell Metropolitan Borough Council,http://www.sandwell.gov.uk/info/200202/performance_and_spending/3233/government_procurement_cards,19-Jul-2018,Resources (Inc SIU),POST OFFICE COUNTER,Assistant Chief Executive (Excl SIU),75,Advertising & Publicity,1819Q02_PC00243
Sandwell Metropolitan Borough Council,http://www.sandwell.gov.uk/info/200202/performance_and_spending/3233/government_procurement_cards,19-Jul-2018,Resources (Inc SIU),POST OFFICE COUNTER,Assistant Chief Executive (Excl SIU),5.31,Advertising & Publicity,1819Q02_PC00244
Sandwell Metropolitan Borough Council,http://www.sandwell.gov.uk/info/200202/performance_and_spending/3233/government_procurement_cards,19-Jul-2018,Total Housing Revenue Account,CERTSURE LLP,Total Housing Revenue Account,1368,Printing Stationery&Gen Office,1819Q02_PC00245
Sandwell Metropolitan Borough Council,http://www.sandwell.gov.uk/info/200202/performance_and_spending/3233/government_procurement_cards,20-Jul-2018,Housing & Communities,TV LICENSING,Neighbourhoods,150.5,Licences,1819Q02_PC00246
Sandwell Metropolitan Borough Council,http://www.sandwell.gov.uk/info/200202/performance_and_spending/3233/government_procurement_cards,20-Jul-2018,Total Housing Revenue Account,CENTRAL COMPUTERS MIDL,Total Housing Revenue Account,70.5,Printing Stationery&Gen Office,1819Q02_PC00247
Sandwell Metropolitan Borough Council,http://www.sandwell.gov.uk/info/200202/performance_and_spending/3233/government_procurement_cards,20-Jul-2018,Total Housing Revenue Account,AIRTECH HUMIDITY CTLS,Total Housing Revenue Account,395,Materials & Consumables,1819Q02_PC00248
Sandwell Metropolitan Borough Council,http://www.sandwell.gov.uk/info/200202/performance_and_spending/3233/government_procurement_cards,20-Jul-2018,Total Housing Revenue Account,AIRTECH HUMIDITY CTLS,Total Housing Revenue Account,420,Materials & Consumables,1819Q02_PC00249
Sandwell Metropolitan Borough Council,http://www.sandwell.gov.uk/info/200202/performance_and_spending/3233/government_procurement_cards,20-Jul-2018,Housing & Communities,B & Q 1276,Neighbourhoods,14.56,Materials & Consumables,1819Q02_PC00250
Sandwell Metropolitan Borough Council,http://www.sandwell.gov.uk/info/200202/performance_and_spending/3233/government_procurement_cards,20-Jul-2018,Childrens Services,AMAETHWYR EIFIONYDD,Childrens Services,73.47,Grounds Maint&Improvements,1819Q02_PC00251
Sandwell Metropolitan Borough Council,http://www.sandwell.gov.uk/info/200202/performance_and_spending/3233/government_procurement_cards,20-Jul-2018,Regeneration & Growth,Amazon EU,Regeneration And The Economy,49.96,R& M - Building Maint&Imp.,1819Q02_PC00252
Sandwell Metropolitan Borough Council,http://www.sandwell.gov.uk/info/200202/performance_and_spending/3233/government_procurement_cards,20-Jul-2018,Total Housing Revenue Account,EB  BUILDING SAFER FUT,Total Housing Revenue Account,25,Conference Expenses,1819Q02_PC00253
Sandwell Metropolitan Borough Council,http://www.sandwell.gov.uk/info/200202/performance_and_spending/3233/government_procurement_cards,20-Jul-2018,Resources (Inc SIU),AMAZON SVCS EU-UK AMAZ,Assistant Chief Executive (Excl SIU),10.95,Printing Stationery&Gen Office,1819Q02_PC00254
Sandwell Metropolitan Borough Council,http://www.sandwell.gov.uk/info/200202/performance_and_spending/3233/government_procurement_cards,20-Jul-2018,Childrens Services,DUNELM ONLINE ORDER,Childrens Services,53.33,Fixtures & Fittings,1819Q02_PC00255
Sandwell Metropolitan Borough Council,http://www.sandwell.gov.uk/info/200202/performance_and_spending/3233/government_procurement_cards,20-Jul-2018,Housing & Communities,BILLINGHAMS FLORISTS,Neighbourhoods,23.33,Materials & Consumables,1819Q02_PC00256
Sandwell Metropolitan Borough Council,http://www.sandwell.gov.uk/info/200202/performance_and_spending/3233/government_procurement_cards,20-Jul-2018,Housing & Communities,POST OFFICE COUNTER,Neighbourhoods,1.87,"Postages, Carriage & Courier Services",1819Q02_PC00257
Sandwell Metropolitan Borough Council,http://www.sandwell.gov.uk/info/200202/performance_and_spending/3233/government_procurement_cards,20-Jul-2018,Housing & Communities,W M MORRISON PLC,Neighbourhoods,12.69,Catering Provisions,1819Q02_PC00258
Sandwell Metropolitan Borough Council,http://www.sandwell.gov.uk/info/200202/performance_and_spending/3233/government_procurement_cards,20-Jul-2018,Childrens Services,ASDA GROCERIES ONLINE,Childrens Services,59.07,Catering Provisions,1819Q02_PC00259
Sandwell Metropolitan Borough Council,http://www.sandwell.gov.uk/info/200202/performance_and_spending/3233/government_procurement_cards,20-Jul-2018,Resources (Inc SIU),Amazon UK Marketplace,Assistant Chief Executive (Excl SIU),129.9,Rent Allowances Local Scheme,1819Q02_PC00260
Sandwell Metropolitan Borough Council,http://www.sandwell.gov.uk/info/200202/performance_and_spending/3233/government_procurement_cards,23-Jul-2018,Resources (Inc SIU),RIBA SERVICES,Assistant Chief Executive (Excl SIU),119.71,Printing Stationery&Gen Office,1819Q02_PC00261
Sandwell Metropolitan Borough Council,http://www.sandwell.gov.uk/info/200202/performance_and_spending/3233/government_procurement_cards,23-Jul-2018,Housing & Communities,PREMIER INN,Neighbourhoods,60,Rents,1819Q02_PC00262
Sandwell Metropolitan Borough Council,http://www.sandwell.gov.uk/info/200202/performance_and_spending/3233/government_procurement_cards,23-Jul-2018,Housing & Communities,ASDA GROCERIES ONLINE,Neighbourhoods,-8.33,Catering Provisions,1819Q02_PC00263
Sandwell Metropolitan Borough Council,http://www.sandwell.gov.uk/info/200202/performance_and_spending/3233/government_procurement_cards,23-Jul-2018,Childrens Services,WWW.QUICKSARCHERY.CO.U,Childrens Services,51.28,Equipment & Furniture,1819Q02_PC00264
Sandwell Metropolitan Borough Council,http://www.sandwell.gov.uk/info/200202/performance_and_spending/3233/government_procurement_cards,23-Jul-2018,Housing & Communities,HIGHFIELD HOUSE HO,Neighbourhoods,840,Rents,1819Q02_PC00265
Sandwell Metropolitan Borough Council,http://www.sandwell.gov.uk/info/200202/performance_and_spending/3233/government_procurement_cards,23-Jul-2018,Housing & Communities,EDGBASTON PALACE,Neighbourhoods,729.17,Rents,1819Q02_PC00266
Sandwell Metropolitan Borough Council,http://www.sandwell.gov.uk/info/200202/performance_and_spending/3233/government_procurement_cards,23-Jul-2018,Childrens Services,ASDA STORES LTD 5865,Childrens Services,2.17,Printing Stationery&Gen Office,1819Q02_PC00267
Sandwell Metropolitan Borough Council,http://www.sandwell.gov.uk/info/200202/performance_and_spending/3233/government_procurement_cards,23-Jul-2018,Childrens Services,HANDY DRY CLEANERS,Childrens Services,347.5,Laundry,1819Q02_PC00268
Sandwell Metropolitan Borough Council,http://www.sandwell.gov.uk/info/200202/performance_and_spending/3233/government_procurement_cards,23-Jul-2018,Regeneration & Growth,SMS CONNECTIONS,Regeneration And The Economy,526.5,Professional Services External,1819Q02_PC00269
Sandwell Metropolitan Borough Council,http://www.sandwell.gov.uk/info/200202/performance_and_spending/3233/government_procurement_cards,23-Jul-2018,Housing & Communities,PREMIER INN,Neighbourhoods,174.17,Rents,1819Q02_PC00270
Sandwell Metropolitan Borough Council,http://www.sandwell.gov.uk/info/200202/performance_and_spending/3233/government_procurement_cards,23-Jul-2018,Resources (Inc SIU),PAYPAL  UNIFASHION,Assistant Chief Executive (Excl SIU),7.49,Equipment & Furniture,1819Q02_PC00271
Sandwell Metropolitan Borough Council,http://www.sandwell.gov.uk/info/200202/performance_and_spending/3233/government_procurement_cards,23-Jul-2018,Resources (Inc SIU),PAYPAL  WANGHUANPEN,Assistant Chief Executive (Excl SIU),20.57,Equipment & Furniture,1819Q02_PC00272
Sandwell Metropolitan Borough Council,http://www.sandwell.gov.uk/info/200202/performance_and_spending/3233/government_procurement_cards,23-Jul-2018,Adult Social Care Health and Wellbeing - Total,Amazon UK Marketplace,Total Adult Social Care,17.61,ICT,1819Q02_PC00273
Sandwell Metropolitan Borough Council,http://www.sandwell.gov.uk/info/200202/performance_and_spending/3233/government_procurement_cards,23-Jul-2018,Resources (Inc SIU),Amazon EU,Assistant Chief Executive (Excl SIU),91.68,Professional Services External,1819Q02_PC00274
Sandwell Metropolitan Borough Council,http://www.sandwell.gov.uk/info/200202/performance_and_spending/3233/government_procurement_cards,23-Jul-2018,Childrens Services,W M MORRISONS,Childrens Services,3.8,Catering Provisions,1819Q02_PC00275
Sandwell Metropolitan Borough Council,http://www.sandwell.gov.uk/info/200202/performance_and_spending/3233/government_procurement_cards,23-Jul-2018,Housing & Communities,EB  ANNUAL TOURING EXH,Neighbourhoods,84.67,Subscriptions,1819Q02_PC00276
Sandwell Metropolitan Borough Council,http://www.sandwell.gov.uk/info/200202/performance_and_spending/3233/government_procurement_cards,23-Jul-2018,Adult Social Care Health and Wellbeing - Total,WWW.UKSAFETYFOOTWEAR.C,Total Adult Social Care,262.5,Protective Clothing&Uniforms,1819Q02_PC00277
Sandwell Metropolitan Borough Council,http://www.sandwell.gov.uk/info/200202/performance_and_spending/3233/government_procurement_cards,23-Jul-2018,Resources (Inc SIU),Sumup Marston (Holding,Assistant Chief Executive (Excl SIU),325,Operational Services,1819Q02_PC00278
Sandwell Metropolitan Borough Council,http://www.sandwell.gov.uk/info/200202/performance_and_spending/3233/government_procurement_cards,23-Jul-2018,Housing & Communities,DVSA OLCS PORTAL 3,Neighbourhoods,401,Subscriptions,1819Q02_PC00279
Sandwell Metropolitan Borough Council,http://www.sandwell.gov.uk/info/200202/performance_and_spending/3233/government_procurement_cards,23-Jul-2018,Housing & Communities,BILLINGHAMS FLORISTS,Neighbourhoods,33.33,Materials & Consumables,1819Q02_PC00280
Sandwell Metropolitan Borough Council,http://www.sandwell.gov.uk/info/200202/performance_and_spending/3233/government_procurement_cards,23-Jul-2018,Childrens Services,LOVE2SHOP.CO.UK,Childrens Services,102.92,Materials & Consumables,1819Q02_PC00281
Sandwell Metropolitan Borough Council,http://www.sandwell.gov.uk/info/200202/performance_and_spending/3233/government_procurement_cards,23-Jul-2018,Housing & Communities,Amazon UK Marketplace,Neighbourhoods,24.63,R & M - Security,1819Q02_PC00282
Sandwell Metropolitan Borough Council,http://www.sandwell.gov.uk/info/200202/performance_and_spending/3233/government_procurement_cards,23-Jul-2018,Housing & Communities,SCREWFIX DIRECT LT,Neighbourhoods,123.3,Equipment & Furniture,1819Q02_PC00283
Sandwell Metropolitan Borough Council,http://www.sandwell.gov.uk/info/200202/performance_and_spending/3233/government_procurement_cards,24-Jul-2018,Childrens Services,HALFORDS 0549,Childrens Services,18.33,Repairs & Maintenance,1819Q02_PC00284
Sandwell Metropolitan Borough Council,http://www.sandwell.gov.uk/info/200202/performance_and_spending/3233/government_procurement_cards,24-Jul-2018,Childrens Services,Amazon UK Marketplace,Childrens Services,49.99,Protective Clothing&Uniforms,1819Q02_PC00285
Sandwell Metropolitan Borough Council,http://www.sandwell.gov.uk/info/200202/performance_and_spending/3233/government_procurement_cards,24-Jul-2018,Total Housing Revenue Account,Amazon UK Marketplace,Total Housing Revenue Account,10.82,Equipment & Furniture,1819Q02_PC00286
Sandwell Metropolitan Borough Council,http://www.sandwell.gov.uk/info/200202/performance_and_spending/3233/government_procurement_cards,24-Jul-2018,Childrens Services,SNOWDONIA WATERSPO,Childrens Services,102.53,Learning Resources,1819Q02_PC00287
Sandwell Metropolitan Borough Council,http://www.sandwell.gov.uk/info/200202/performance_and_spending/3233/government_procurement_cards,24-Jul-2018,Childrens Services,AMAZON SVCS EU-UK AMAZ,Childrens Services,65.94,Materials & Consumables,1819Q02_PC00288
Sandwell Metropolitan Borough Council,http://www.sandwell.gov.uk/info/200202/performance_and_spending/3233/government_procurement_cards,24-Jul-2018,Resources (Inc SIU),SANDWELL M.B.C.,Assistant Chief Executive (Excl SIU),-0.01,Employee Expenses,1819Q02_PC00289
Sandwell Metropolitan Borough Council,http://www.sandwell.gov.uk/info/200202/performance_and_spending/3233/government_procurement_cards,24-Jul-2018,Resources (Inc SIU),SANDWELL M.B.C.,Assistant Chief Executive (Excl SIU),0.01,Employee Expenses,1819Q02_PC00290
Sandwell Metropolitan Borough Council,http://www.sandwell.gov.uk/info/200202/performance_and_spending/3233/government_procurement_cards,24-Jul-2018,Corporate Management,ADMIRE FLORIST,Corporate Management,54.99,Civic Events,1819Q02_PC00291
Sandwell Metropolitan Borough Council,http://www.sandwell.gov.uk/info/200202/performance_and_spending/3233/government_procurement_cards,24-Jul-2018,Resources (Inc SIU),WP-ACAS,Assistant Chief Executive (Excl SIU),230,Ind. Emp Exp-Staff Dev&Training,1819Q02_PC00292
Sandwell Metropolitan Borough Council,http://www.sandwell.gov.uk/info/200202/performance_and_spending/3233/government_procurement_cards,24-Jul-2018,Housing & Communities,ARGOS LTD,Neighbourhoods,124.99,Equipment & Furniture,1819Q02_PC00293
Sandwell Metropolitan Borough Council,http://www.sandwell.gov.uk/info/200202/performance_and_spending/3233/government_procurement_cards,24-Jul-2018,Childrens Services,AMAZON SVCS EU-UK AMAZ,Childrens Services,6.37,Materials & Consumables,1819Q02_PC00294
Sandwell Metropolitan Borough Council,http://www.sandwell.gov.uk/info/200202/performance_and_spending/3233/government_procurement_cards,24-Jul-2018,Housing & Communities,PENNON WATER SERVICES,Neighbourhoods,310.11,Water Services,1819Q02_PC00295
Sandwell Metropolitan Borough Council,http://www.sandwell.gov.uk/info/200202/performance_and_spending/3233/government_procurement_cards,24-Jul-2018,Childrens Services,SPSERVICES.CO.UK,Childrens Services,134.27,Professional Services External,1819Q02_PC00296
Sandwell Metropolitan Borough Council,http://www.sandwell.gov.uk/info/200202/performance_and_spending/3233/government_procurement_cards,24-Jul-2018,Childrens Services,SPSERVICES.CO.UK,Childrens Services,31.7,Professional Services External,1819Q02_PC00297
Sandwell Metropolitan Borough Council,http://www.sandwell.gov.uk/info/200202/performance_and_spending/3233/government_procurement_cards,24-Jul-2018,Housing & Communities,TESCO STORES 2335,Neighbourhoods,6.67,Materials & Consumables,1819Q02_PC00298
Sandwell Metropolitan Borough Council,http://www.sandwell.gov.uk/info/200202/performance_and_spending/3233/government_procurement_cards,24-Jul-2018,Resources (Inc SIU),FASHION FILE & SPORTS,Assistant Chief Executive (Excl SIU),160,Protective Clothing&Uniforms,1819Q02_PC00299
Sandwell Metropolitan Borough Council,http://www.sandwell.gov.uk/info/200202/performance_and_spending/3233/government_procurement_cards,25-Jul-2018,Housing & Communities,AMAZON SVCS EU-UK AMAZ,Neighbourhoods,8.32,Materials & Consumables,1819Q02_PC00300
Sandwell Metropolitan Borough Council,http://www.sandwell.gov.uk/info/200202/performance_and_spending/3233/government_procurement_cards,25-Jul-2018,Housing & Communities,PREMIER INN,Neighbourhoods,64.17,Rents,1819Q02_PC00301
Sandwell Metropolitan Borough Council,http://www.sandwell.gov.uk/info/200202/performance_and_spending/3233/government_procurement_cards,25-Jul-2018,Resources (Inc SIU),STAYCITY WILDE APARTHO,Assistant Chief Executive (Excl SIU),677.5,Ind. Emp Exp-Staff Dev&Training,1819Q02_PC00302
Sandwell Metropolitan Borough Council,http://www.sandwell.gov.uk/info/200202/performance_and_spending/3233/government_procurement_cards,25-Jul-2018,Housing & Communities,HIGHFIELD HOUSE HO,Neighbourhoods,682.5,Rents,1819Q02_PC00303
Sandwell Metropolitan Borough Council,http://www.sandwell.gov.uk/info/200202/performance_and_spending/3233/government_procurement_cards,25-Jul-2018,Childrens Services,ASDA STORES LTD 5865,Childrens Services,1,Catering Provisions,1819Q02_PC00304
Sandwell Metropolitan Borough Council,http://www.sandwell.gov.uk/info/200202/performance_and_spending/3233/government_procurement_cards,25-Jul-2018,Adult Social Care Health and Wellbeing - Total,Amazon UK Marketplace,Total Adult Social Care,20.17,Equipment & Furniture,1819Q02_PC00305
Sandwell Metropolitan Borough Council,http://www.sandwell.gov.uk/info/200202/performance_and_spending/3233/government_procurement_cards,25-Jul-2018,Housing & Communities,HIGHFIELD HOUSE HO,Neighbourhoods,29.17,Rents,1819Q02_PC00306
Sandwell Metropolitan Borough Council,http://www.sandwell.gov.uk/info/200202/performance_and_spending/3233/government_procurement_cards,25-Jul-2018,Childrens Services,THE POST OFFICE,Childrens Services,0.79,"Postages, Carriage & Courier Services",1819Q02_PC00307
Sandwell Metropolitan Borough Council,http://www.sandwell.gov.uk/info/200202/performance_and_spending/3233/government_procurement_cards,25-Jul-2018,Childrens Services,ASDA STORES LTD 5865,Childrens Services,5.59,Catering Provisions,1819Q02_PC00308
Sandwell Metropolitan Borough Council,http://www.sandwell.gov.uk/info/200202/performance_and_spending/3233/government_procurement_cards,25-Jul-2018,Childrens Services,THE POST OFFICE,Childrens Services,32.3,"Postages, Carriage & Courier Services",1819Q02_PC00309
Sandwell Metropolitan Borough Council,http://www.sandwell.gov.uk/info/200202/performance_and_spending/3233/government_procurement_cards,25-Jul-2018,Housing & Communities,Amazon EU,Neighbourhoods,4.78,Equipment & Furniture,1819Q02_PC00310
Sandwell Metropolitan Borough Council,http://www.sandwell.gov.uk/info/200202/performance_and_spending/3233/government_procurement_cards,25-Jul-2018,Housing & Communities,Amazon UK Marketplace,Neighbourhoods,49.52,Materials & Consumables,1819Q02_PC00311
Sandwell Metropolitan Borough Council,http://www.sandwell.gov.uk/info/200202/performance_and_spending/3233/government_procurement_cards,25-Jul-2018,Housing & Communities,TESCO STORES 2335,Neighbourhoods,10.42,Catering Provisions,1819Q02_PC00312
Sandwell Metropolitan Borough Council,http://www.sandwell.gov.uk/info/200202/performance_and_spending/3233/government_procurement_cards,25-Jul-2018,Housing & Communities,TESCO STORES 2335,Neighbourhoods,42.17,Catering Provisions,1819Q02_PC00313
Sandwell Metropolitan Borough Council,http://www.sandwell.gov.uk/info/200202/performance_and_spending/3233/government_procurement_cards,25-Jul-2018,Resources (Inc SIU),HMCOURTS-SERVICE.G,Assistant Chief Executive (Excl SIU),599.5,Council Tax,1819Q02_PC00314
Sandwell Metropolitan Borough Council,http://www.sandwell.gov.uk/info/200202/performance_and_spending/3233/government_procurement_cards,26-Jul-2018,Housing & Communities,PREMIER INN,Neighbourhoods,170.83,Rents,1819Q02_PC00315
Sandwell Metropolitan Borough Council,http://www.sandwell.gov.uk/info/200202/performance_and_spending/3233/government_procurement_cards,26-Jul-2018,Housing & Communities,PREMIER INN,Neighbourhoods,192.08,Rents,1819Q02_PC00316
Sandwell Metropolitan Borough Council,http://www.sandwell.gov.uk/info/200202/performance_and_spending/3233/government_procurement_cards,26-Jul-2018,Housing & Communities,Amazon UK Marketplace,Neighbourhoods,21.66,Equipment & Furniture,1819Q02_PC00317
Sandwell Metropolitan Borough Council,http://www.sandwell.gov.uk/info/200202/performance_and_spending/3233/government_procurement_cards,26-Jul-2018,Housing & Communities,ARGOS LTD,Neighbourhoods,10.41,Equipment & Furniture,1819Q02_PC00318
Sandwell Metropolitan Borough Council,http://www.sandwell.gov.uk/info/200202/performance_and_spending/3233/government_procurement_cards,26-Jul-2018,Childrens Services,SP   BATTERY WAREHOUSE,Childrens Services,25.42,Materials & Consumables,1819Q02_PC00319
Sandwell Metropolitan Borough Council,http://www.sandwell.gov.uk/info/200202/performance_and_spending/3233/government_procurement_cards,26-Jul-2018,Adult Social Care Health and Wellbeing - Total,WORD360,Total Adult Social Care,45,Professional Services External,1819Q02_PC00320
Sandwell Metropolitan Borough Council,http://www.sandwell.gov.uk/info/200202/performance_and_spending/3233/government_procurement_cards,26-Jul-2018,Resources (Inc SIU),T J MORRIS LTD,Assistant Chief Executive (Excl SIU),8.53,Printing Stationery&Gen Office,1819Q02_PC00321
Sandwell Metropolitan Borough Council,http://www.sandwell.gov.uk/info/200202/performance_and_spending/3233/government_procurement_cards,26-Jul-2018,Childrens Services,WWW.WESTMINSTER-BRIEFI,Childrens Services,245,Ind. Emp Exp-Staff Dev&Training,1819Q02_PC00322
Sandwell Metropolitan Borough Council,http://www.sandwell.gov.uk/info/200202/performance_and_spending/3233/government_procurement_cards,26-Jul-2018,Adult Social Care Health and Wellbeing - Total,Amazon UK Marketplace,Total Adult Social Care,20.16,Equipment & Furniture,1819Q02_PC00323
Sandwell Metropolitan Borough Council,http://www.sandwell.gov.uk/info/200202/performance_and_spending/3233/government_procurement_cards,26-Jul-2018,Childrens Services,THE INSTITUTE FOR OUTD,Childrens Services,450,Ind. Emp Exp-Staff Dev&Training,1819Q02_PC00324
Sandwell Metropolitan Borough Council,http://www.sandwell.gov.uk/info/200202/performance_and_spending/3233/government_procurement_cards,26-Jul-2018,Housing & Communities,ASDA GROCERIES ONLINE,Neighbourhoods,-5.83,Catering Provisions,1819Q02_PC00325
Sandwell Metropolitan Borough Council,http://www.sandwell.gov.uk/info/200202/performance_and_spending/3233/government_procurement_cards,26-Jul-2018,Housing & Communities,ASDA GROCERIES ONLINE,Neighbourhoods,91.67,Catering Provisions,1819Q02_PC00326
Sandwell Metropolitan Borough Council,http://www.sandwell.gov.uk/info/200202/performance_and_spending/3233/government_procurement_cards,26-Jul-2018,Housing & Communities,AO RETAIL LIMITED,Neighbourhoods,232.5,Equipment & Furniture,1819Q02_PC00327
Sandwell Metropolitan Borough Council,http://www.sandwell.gov.uk/info/200202/performance_and_spending/3233/government_procurement_cards,27-Jul-2018,Resources (Inc SIU),RIBA SERVICES,Assistant Chief Executive (Excl SIU),187.92,Printing Stationery&Gen Office,1819Q02_PC00328
Sandwell Metropolitan Borough Council,http://www.sandwell.gov.uk/info/200202/performance_and_spending/3233/government_procurement_cards,27-Jul-2018,Childrens Services,VALUE PRODUCTS LTD,Childrens Services,73.75,Materials & Consumables,1819Q02_PC00329
Sandwell Metropolitan Borough Council,http://www.sandwell.gov.uk/info/200202/performance_and_spending/3233/government_procurement_cards,27-Jul-2018,Childrens Services,FIRSTAID4LESS.CO.UK,Childrens Services,56.95,Materials & Consumables,1819Q02_PC00330
Sandwell Metropolitan Borough Council,http://www.sandwell.gov.uk/info/200202/performance_and_spending/3233/government_procurement_cards,27-Jul-2018,Adult Social Care Health and Wellbeing - Total,WWW.ARGOS.CO.UK,Total Adult Social Care,1048.25,Fixtures & Fittings,1819Q02_PC00331
Sandwell Metropolitan Borough Council,http://www.sandwell.gov.uk/info/200202/performance_and_spending/3233/government_procurement_cards,27-Jul-2018,Resources (Inc SIU),WWW.CIPFA.ORG.UK/PFMCO,Assistant Chief Executive (Excl SIU),295,Ind. Emp Exp-Staff Dev&Training,1819Q02_PC00332
Sandwell Metropolitan Borough Council,http://www.sandwell.gov.uk/info/200202/performance_and_spending/3233/government_procurement_cards,27-Jul-2018,Adult Social Care Health and Wellbeing - Total,WWW.ARGOS.CO.UK,Total Adult Social Care,99.92,Fixtures & Fittings,1819Q02_PC00333
Sandwell Metropolitan Borough Council,http://www.sandwell.gov.uk/info/200202/performance_and_spending/3233/government_procurement_cards,27-Jul-2018,Childrens Services,Amazon UK Marketplace,Childrens Services,49.98,Materials & Consumables,1819Q02_PC00334
Sandwell Metropolitan Borough Council,http://www.sandwell.gov.uk/info/200202/performance_and_spending/3233/government_procurement_cards,27-Jul-2018,Housing & Communities,ASDA SUPERSTORE,Neighbourhoods,126.74,Catering Provisions,1819Q02_PC00335
Sandwell Metropolitan Borough Council,http://www.sandwell.gov.uk/info/200202/performance_and_spending/3233/government_procurement_cards,27-Jul-2018,Housing & Communities,EDGBASTON PALACE,Neighbourhoods,83.33,Rents,1819Q02_PC00336
Sandwell Metropolitan Borough Council,http://www.sandwell.gov.uk/info/200202/performance_and_spending/3233/government_procurement_cards,27-Jul-2018,Resources (Inc SIU),FTC ECOM,Assistant Chief Executive (Excl SIU),93,Examination Expenses,1819Q02_PC00337
Sandwell Metropolitan Borough Council,http://www.sandwell.gov.uk/info/200202/performance_and_spending/3233/government_procurement_cards,27-Jul-2018,Corporate Management,WWW.PARTYDELIGHTS.CO.U,Corporate Management,124.22,Civic Events,1819Q02_PC00338
Sandwell Metropolitan Borough Council,http://www.sandwell.gov.uk/info/200202/performance_and_spending/3233/government_procurement_cards,27-Jul-2018,Resources (Inc SIU),WWW.INVESTERSINPEOPLEM,Assistant Chief Executive (Excl SIU),97.46,Equipment & Furniture,1819Q02_PC00339
Sandwell Metropolitan Borough Council,http://www.sandwell.gov.uk/info/200202/performance_and_spending/3233/government_procurement_cards,27-Jul-2018,Resources (Inc SIU),Amazon Prime,Assistant Chief Executive (Excl SIU),6.66,Rent Allowances Local Scheme,1819Q02_PC00340
Sandwell Metropolitan Borough Council,http://www.sandwell.gov.uk/info/200202/performance_and_spending/3233/government_procurement_cards,30-Jul-2018,Housing & Communities,EDGBASTON PALACE,Neighbourhoods,-250,Rents,1819Q02_PC00341
Sandwell Metropolitan Borough Council,http://www.sandwell.gov.uk/info/200202/performance_and_spending/3233/government_procurement_cards,30-Jul-2018,Housing & Communities,EDGBASTON PALACE,Neighbourhoods,729.17,Rents,1819Q02_PC00342
Sandwell Metropolitan Borough Council,http://www.sandwell.gov.uk/info/200202/performance_and_spending/3233/government_procurement_cards,30-Jul-2018,Childrens Services,JOE BROWN SHOPS,Childrens Services,96,Learning Resources,1819Q02_PC00343
Sandwell Metropolitan Borough Council,http://www.sandwell.gov.uk/info/200202/performance_and_spending/3233/government_procurement_cards,30-Jul-2018,Housing & Communities,EDGBASTON PALACE,Neighbourhoods,250,Rents,1819Q02_PC00344
Sandwell Metropolitan Borough Council,http://www.sandwell.gov.uk/info/200202/performance_and_spending/3233/government_procurement_cards,30-Jul-2018,Housing & Communities,HIGHFIELD HOUSE HO,Neighbourhoods,840,Rents,1819Q02_PC00345
Sandwell Metropolitan Borough Council,http://www.sandwell.gov.uk/info/200202/performance_and_spending/3233/government_procurement_cards,30-Jul-2018,Housing & Communities,BRITANNIA,Neighbourhoods,110,Rents,1819Q02_PC00346
Sandwell Metropolitan Borough Council,http://www.sandwell.gov.uk/info/200202/performance_and_spending/3233/government_procurement_cards,30-Jul-2018,Childrens Services,YORKSHIRE PURCHASING O,Childrens Services,17.09,Printing Stationery&Gen Office,1819Q02_PC00347
Sandwell Metropolitan Borough Council,http://www.sandwell.gov.uk/info/200202/performance_and_spending/3233/government_procurement_cards,30-Jul-2018,Housing & Communities,ASDA GROCERIES ONLINE,Neighbourhoods,139.29,Catering Provisions,1819Q02_PC00348
Sandwell Metropolitan Borough Council,http://www.sandwell.gov.uk/info/200202/performance_and_spending/3233/government_procurement_cards,30-Jul-2018,Housing & Communities,ASDA GROCERIES ONLINE,Neighbourhoods,89.23,Catering Provisions,1819Q02_PC00349
Sandwell Metropolitan Borough Council,http://www.sandwell.gov.uk/info/200202/performance_and_spending/3233/government_procurement_cards,30-Jul-2018,Housing & Communities,CENTREWIRE,Neighbourhoods,10.5,Fixtures & Fittings,1819Q02_PC00350
Sandwell Metropolitan Borough Council,http://www.sandwell.gov.uk/info/200202/performance_and_spending/3233/government_procurement_cards,30-Jul-2018,Housing & Communities,THE STENCIL WAREHOUSE,Neighbourhoods,47.5,Equipment & Furniture,1819Q02_PC00351
Sandwell Metropolitan Borough Council,http://www.sandwell.gov.uk/info/200202/performance_and_spending/3233/government_procurement_cards,30-Jul-2018,Housing & Communities,SHAWS THE DRAPERS,Neighbourhoods,26.5,Materials & Consumables,1819Q02_PC00352
Sandwell Metropolitan Borough Council,http://www.sandwell.gov.uk/info/200202/performance_and_spending/3233/government_procurement_cards,30-Jul-2018,Housing & Communities,HERON FOODS LTD,Neighbourhoods,1.5,Catering Provisions,1819Q02_PC00353
Sandwell Metropolitan Borough Council,http://www.sandwell.gov.uk/info/200202/performance_and_spending/3233/government_procurement_cards,30-Jul-2018,Housing & Communities,ASDA GROCERIES ONLINE,Neighbourhoods,-0.25,Catering Provisions,1819Q02_PC00354
Sandwell Metropolitan Borough Council,http://www.sandwell.gov.uk/info/200202/performance_and_spending/3233/government_procurement_cards,30-Jul-2018,Housing & Communities,PREMIER INN,Neighbourhoods,205.83,Rents,1819Q02_PC00355
Sandwell Metropolitan Borough Council,http://www.sandwell.gov.uk/info/200202/performance_and_spending/3233/government_procurement_cards,30-Jul-2018,Housing & Communities,PREMIER INN,Neighbourhoods,173.33,Rents,1819Q02_PC00356
Sandwell Metropolitan Borough Council,http://www.sandwell.gov.uk/info/200202/performance_and_spending/3233/government_procurement_cards,30-Jul-2018,Resources (Inc SIU),AT WORK PARTNERSHIP LT,Assistant Chief Executive (Excl SIU),189,Professional Services External,1819Q02_PC00357
Sandwell Metropolitan Borough Council,http://www.sandwell.gov.uk/info/200202/performance_and_spending/3233/government_procurement_cards,30-Jul-2018,Adult Social Care Health and Wellbeing - Total,Amazon UK Marketplace,Total Adult Social Care,27.14,Equipment & Furniture,1819Q02_PC00358
Sandwell Metropolitan Borough Council,http://www.sandwell.gov.uk/info/200202/performance_and_spending/3233/government_procurement_cards,30-Jul-2018,Housing & Communities,TESCO STORES 2335,Neighbourhoods,66.6,Catering Provisions,1819Q02_PC00359
Sandwell Metropolitan Borough Council,http://www.sandwell.gov.uk/info/200202/performance_and_spending/3233/government_procurement_cards,30-Jul-2018,Childrens Services,SPSERVICES.CO.UK,Childrens Services,-4.95,Professional Services External,1819Q02_PC00360
Sandwell Metropolitan Borough Council,http://www.sandwell.gov.uk/info/200202/performance_and_spending/3233/government_procurement_cards,30-Jul-2018,Individual School Budgets With Inclusion,Amazon UK Marketplace,Individual School Budgets With Inclusion,16.23,Materials & Consumables,1819Q02_PC00361
Sandwell Metropolitan Borough Council,http://www.sandwell.gov.uk/info/200202/performance_and_spending/3233/government_procurement_cards,31-Jul-2018,Childrens Services,ASDA STORES LTD 5865,Childrens Services,1.49,Materials & Consumables,1819Q02_PC00362
Sandwell Metropolitan Borough Council,http://www.sandwell.gov.uk/info/200202/performance_and_spending/3233/government_procurement_cards,31-Jul-2018,Resources (Inc SIU),ASDA SUPERSTORE,Assistant Chief Executive (Excl SIU),12.08,Equipment & Furniture,1819Q02_PC00363
Sandwell Metropolitan Borough Council,http://www.sandwell.gov.uk/info/200202/performance_and_spending/3233/government_procurement_cards,31-Jul-2018,Childrens Services,J VAN VLIET BIRMINGHAM,Childrens Services,101.45,Learning Resources,1819Q02_PC00364
Sandwell Metropolitan Borough Council,http://www.sandwell.gov.uk/info/200202/performance_and_spending/3233/government_procurement_cards,31-Jul-2018,Total Housing Revenue Account,EXPEDIA 7369510991197,Total Housing Revenue Account,1484.67,Day Care-Other Agencies,1819Q02_PC00365
Sandwell Metropolitan Borough Council,http://www.sandwell.gov.uk/info/200202/performance_and_spending/3233/government_procurement_cards,31-Jul-2018,Resources (Inc SIU),MORPLAN LTD,Assistant Chief Executive (Excl SIU),124.5,Civic Events,1819Q02_PC00366
Sandwell Metropolitan Borough Council,http://www.sandwell.gov.uk/info/200202/performance_and_spending/3233/government_procurement_cards,31-Jul-2018,Childrens Services,ASDA STORES LTD 5865,Childrens Services,4.8,Materials & Consumables,1819Q02_PC00367
Sandwell Metropolitan Borough Council,http://www.sandwell.gov.uk/info/200202/performance_and_spending/3233/government_procurement_cards,31-Jul-2018,Housing & Communities,Amazon UK Marketplace,Neighbourhoods,4.66,Equipment & Furniture,1819Q02_PC00368
Sandwell Metropolitan Borough Council,http://www.sandwell.gov.uk/info/200202/performance_and_spending/3233/government_procurement_cards,31-Jul-2018,Housing & Communities,Amazon UK Marketplace,Neighbourhoods,21.98,Equipment & Furniture,1819Q02_PC00369
Sandwell Metropolitan Borough Council,http://www.sandwell.gov.uk/info/200202/performance_and_spending/3233/government_procurement_cards,31-Jul-2018,Childrens Services,WICKES 299,Childrens Services,184.93,R& M - Building Maint&Imp.,1819Q02_PC00370
Sandwell Metropolitan Borough Council,http://www.sandwell.gov.uk/info/200202/performance_and_spending/3233/government_procurement_cards,31-Jul-2018,Childrens Services,SCREWFIX,Childrens Services,15.55,R& M - Building Maint&Imp.,1819Q02_PC00371
Sandwell Metropolitan Borough Council,http://www.sandwell.gov.uk/info/200202/performance_and_spending/3233/government_procurement_cards,31-Jul-2018,Adult Social Care Health and Wellbeing - Total,Amazon UK Marketplace,Total Adult Social Care,13.53,Equipment & Furniture,1819Q02_PC00372
Sandwell Metropolitan Borough Council,http://www.sandwell.gov.uk/info/200202/performance_and_spending/3233/government_procurement_cards,01-Aug-2018,Total Housing Revenue Account,LUFTHANSA,Total Housing Revenue Account,1580.02,Residential-Other Agencies,1819Q02_PC00373
Sandwell Metropolitan Borough Council,http://www.sandwell.gov.uk/info/200202/performance_and_spending/3233/government_procurement_cards,01-Aug-2018,Total Housing Revenue Account,LUFTHANSA,Total Housing Revenue Account,1580.02,Residential-Other Agencies,1819Q02_PC00374
Sandwell Metropolitan Borough Council,http://www.sandwell.gov.uk/info/200202/performance_and_spending/3233/government_procurement_cards,01-Aug-2018,Childrens Services,ASDA STORES LTD 5865,Childrens Services,2.5,Materials & Consumables,1819Q02_PC00375
Sandwell Metropolitan Borough Council,http://www.sandwell.gov.uk/info/200202/performance_and_spending/3233/government_procurement_cards,01-Aug-2018,Childrens Services,Trainline,Childrens Services,-58.2,Public Transport,1819Q02_PC00376
Sandwell Metropolitan Borough Council,http://www.sandwell.gov.uk/info/200202/performance_and_spending/3233/government_procurement_cards,01-Aug-2018,Childrens Services,Trainline,Childrens Services,-57.7,Public Transport,1819Q02_PC00377
Sandwell Metropolitan Borough Council,http://www.sandwell.gov.uk/info/200202/performance_and_spending/3233/government_procurement_cards,01-Aug-2018,Resources (Inc SIU),Virgin Trains,Assistant Chief Executive (Excl SIU),105,Public Transport,1819Q02_PC00378
Sandwell Metropolitan Borough Council,http://www.sandwell.gov.uk/info/200202/performance_and_spending/3233/government_procurement_cards,01-Aug-2018,Resources (Inc SIU),Virgin Trains,Assistant Chief Executive (Excl SIU),39,Public Transport,1819Q02_PC00379
Sandwell Metropolitan Borough Council,http://www.sandwell.gov.uk/info/200202/performance_and_spending/3233/government_procurement_cards,01-Aug-2018,Housing & Communities,HIGHFIELD HOUSE HO,Neighbourhoods,97.5,Rents,1819Q02_PC00380
Sandwell Metropolitan Borough Council,http://www.sandwell.gov.uk/info/200202/performance_and_spending/3233/government_procurement_cards,01-Aug-2018,Resources (Inc SIU),AMZN Mktp UK,Assistant Chief Executive (Excl SIU),130.42,ICT,1819Q02_PC00381
Sandwell Metropolitan Borough Council,http://www.sandwell.gov.uk/info/200202/performance_and_spending/3233/government_procurement_cards,01-Aug-2018,Childrens Services,AVH SUPPLIES,Childrens Services,13.83,R& M - Building Maint&Imp.,1819Q02_PC00382
Sandwell Metropolitan Borough Council,http://www.sandwell.gov.uk/info/200202/performance_and_spending/3233/government_procurement_cards,01-Aug-2018,Housing & Communities,BRITANNIA,Neighbourhoods,51.67,Rents,1819Q02_PC00383
Sandwell Metropolitan Borough Council,http://www.sandwell.gov.uk/info/200202/performance_and_spending/3233/government_procurement_cards,01-Aug-2018,Childrens Services,FACEBK 7R7YZGWFJ2,Childrens Services,14.03,Ind. Emp Exp-Advertising,1819Q02_PC00384
Sandwell Metropolitan Borough Council,http://www.sandwell.gov.uk/info/200202/performance_and_spending/3233/government_procurement_cards,01-Aug-2018,Childrens Services,FACEBK AR7YZGWFJ2,Childrens Services,2.34,Ind. Emp Exp-Advertising,1819Q02_PC00385
Sandwell Metropolitan Borough Council,http://www.sandwell.gov.uk/info/200202/performance_and_spending/3233/government_procurement_cards,02-Aug-2018,Childrens Services,MENAI CLEANING SER,Childrens Services,105,Agency Staff,1819Q02_PC00386
Sandwell Metropolitan Borough Council,http://www.sandwell.gov.uk/info/200202/performance_and_spending/3233/government_procurement_cards,02-Aug-2018,Housing & Communities,PREMIER INN,Neighbourhoods,147.5,Rents,1819Q02_PC00387
Sandwell Metropolitan Borough Council,http://www.sandwell.gov.uk/info/200202/performance_and_spending/3233/government_procurement_cards,02-Aug-2018,Housing & Communities,W M MORRISON PLC,Neighbourhoods,4,Catering Provisions,1819Q02_PC00388
Sandwell Metropolitan Borough Council,http://www.sandwell.gov.uk/info/200202/performance_and_spending/3233/government_procurement_cards,02-Aug-2018,Resources (Inc SIU),HMCOURTS-SERVICE.G,Assistant Chief Executive (Excl SIU),66,Council Tax,1819Q02_PC00389
Sandwell Metropolitan Borough Council,http://www.sandwell.gov.uk/info/200202/performance_and_spending/3233/government_procurement_cards,02-Aug-2018,Resources (Inc SIU),AMZN Mktp UK,Assistant Chief Executive (Excl SIU),15.4,Advertising & Publicity,1819Q02_PC00390
Sandwell Metropolitan Borough Council,http://www.sandwell.gov.uk/info/200202/performance_and_spending/3233/government_procurement_cards,02-Aug-2018,Childrens Services,AVH SUPPLIES,Childrens Services,17.92,R& M - Building Maint&Imp.,1819Q02_PC00391
Sandwell Metropolitan Borough Council,http://www.sandwell.gov.uk/info/200202/performance_and_spending/3233/government_procurement_cards,02-Aug-2018,Housing & Communities,ANDY LOOS LTD,Neighbourhoods,446.2,Equipment & Furniture,1819Q02_PC00392
Sandwell Metropolitan Borough Council,http://www.sandwell.gov.uk/info/200202/performance_and_spending/3233/government_procurement_cards,02-Aug-2018,Housing & Communities,OAKBANK GAME & CONSERV,Neighbourhoods,265,Grounds Maint&Improvements,1819Q02_PC00393
Sandwell Metropolitan Borough Council,http://www.sandwell.gov.uk/info/200202/performance_and_spending/3233/government_procurement_cards,03-Aug-2018,Childrens Services,MEDI-TEC LTD,Childrens Services,60,Ind. Emp Exp-Staff Dev&Training,1819Q02_PC00394
Sandwell Metropolitan Borough Council,http://www.sandwell.gov.uk/info/200202/performance_and_spending/3233/government_procurement_cards,03-Aug-2018,Housing & Communities,PAYPAL  ATH LTD,Neighbourhoods,8.32,Equipment & Furniture,1819Q02_PC00395
Sandwell Metropolitan Borough Council,http://www.sandwell.gov.uk/info/200202/performance_and_spending/3233/government_procurement_cards,03-Aug-2018,Adult Social Care Health and Wellbeing - Total,CHARTERED INSTITUTE OF,Total Adult Social Care,136,Professional Services External,1819Q02_PC00396
Sandwell Metropolitan Borough Council,http://www.sandwell.gov.uk/info/200202/performance_and_spending/3233/government_procurement_cards,03-Aug-2018,Adult Social Care Health and Wellbeing - Total,CHARTERED INSTITUTE OF,Total Adult Social Care,136,Professional Services External,1819Q02_PC00397
Sandwell Metropolitan Borough Council,http://www.sandwell.gov.uk/info/200202/performance_and_spending/3233/government_procurement_cards,03-Aug-2018,Childrens Services,AMZ Mastershoe,Childrens Services,-49.99,Protective Clothing&Uniforms,1819Q02_PC00398
Sandwell Metropolitan Borough Council,http://www.sandwell.gov.uk/info/200202/performance_and_spending/3233/government_procurement_cards,03-Aug-2018,Childrens Services,BAKER ROSS LTD,Childrens Services,179.25,Materials & Consumables,1819Q02_PC00399
Sandwell Metropolitan Borough Council,http://www.sandwell.gov.uk/info/200202/performance_and_spending/3233/government_procurement_cards,03-Aug-2018,Housing & Communities,CMS (KIDDERMINSTER,Neighbourhoods,311,Fire Service Workshops,1819Q02_PC00400
Sandwell Metropolitan Borough Council,http://www.sandwell.gov.uk/info/200202/performance_and_spending/3233/government_procurement_cards,03-Aug-2018,Housing & Communities,TRAVELODGE,Neighbourhoods,186.67,Rents,1819Q02_PC00401
Sandwell Metropolitan Borough Council,http://www.sandwell.gov.uk/info/200202/performance_and_spending/3233/government_procurement_cards,03-Aug-2018,Housing & Communities,CHAPMANS ELECTRICAL,Neighbourhoods,87.01,Equipment & Furniture,1819Q02_PC00402
Sandwell Metropolitan Borough Council,http://www.sandwell.gov.uk/info/200202/performance_and_spending/3233/government_procurement_cards,03-Aug-2018,Regeneration & Growth,VUE NCS CITB HS&E TEST,Regeneration And The Economy,21,Ind. Emp Exp-Staff Dev&Training,1819Q02_PC00403
Sandwell Metropolitan Borough Council,http://www.sandwell.gov.uk/info/200202/performance_and_spending/3233/government_procurement_cards,03-Aug-2018,Regeneration & Growth,VUE NCS CITB HS&E TEST,Regeneration And The Economy,21,Ind. Emp Exp-Staff Dev&Training,1819Q02_PC00404
Sandwell Metropolitan Borough Council,http://www.sandwell.gov.uk/info/200202/performance_and_spending/3233/government_procurement_cards,03-Aug-2018,Resources (Inc SIU),GOOGLE  CLOUD_01B69F-A,Assistant Chief Executive (Excl SIU),77.91,ICT,1819Q02_PC00405
Sandwell Metropolitan Borough Council,http://www.sandwell.gov.uk/info/200202/performance_and_spending/3233/government_procurement_cards,03-Aug-2018,Total Housing Revenue Account,AMZN Mktp UK,Total Housing Revenue Account,30,Materials & Consumables,1819Q02_PC00406
Sandwell Metropolitan Borough Council,http://www.sandwell.gov.uk/info/200202/performance_and_spending/3233/government_procurement_cards,03-Aug-2018,Housing & Communities,BRITANNIA,Neighbourhoods,25,Rents,1819Q02_PC00407
Sandwell Metropolitan Borough Council,http://www.sandwell.gov.uk/info/200202/performance_and_spending/3233/government_procurement_cards,03-Aug-2018,Housing & Communities,HIGHFIELD HOUSE HO,Neighbourhoods,624.17,Rents,1819Q02_PC00408
Sandwell Metropolitan Borough Council,http://www.sandwell.gov.uk/info/200202/performance_and_spending/3233/government_procurement_cards,03-Aug-2018,Housing & Communities,HIGHFIELD HOUSE HO,Neighbourhoods,525,Rents,1819Q02_PC00409
Sandwell Metropolitan Borough Council,http://www.sandwell.gov.uk/info/200202/performance_and_spending/3233/government_procurement_cards,03-Aug-2018,Housing & Communities,PAYPAL  BLACKPIGEON,Neighbourhoods,3.96,Telephones,1819Q02_PC00410
Sandwell Metropolitan Borough Council,http://www.sandwell.gov.uk/info/200202/performance_and_spending/3233/government_procurement_cards,03-Aug-2018,Housing & Communities,ADVERTA.CO.UK,Neighbourhoods,990,Advertising & Publicity,1819Q02_PC00411
Sandwell Metropolitan Borough Council,http://www.sandwell.gov.uk/info/200202/performance_and_spending/3233/government_procurement_cards,03-Aug-2018,Housing & Communities,ADVERTA.CO.UK,Neighbourhoods,102,Advertising & Publicity,1819Q02_PC00412
Sandwell Metropolitan Borough Council,http://www.sandwell.gov.uk/info/200202/performance_and_spending/3233/government_procurement_cards,03-Aug-2018,Corporate Management,GT APPLIANCE WAREHOUSE,Corporate Management,2495.83,Fixtures & Fittings,1819Q02_PC00413
Sandwell Metropolitan Borough Council,http://www.sandwell.gov.uk/info/200202/performance_and_spending/3233/government_procurement_cards,06-Aug-2018,Resources (Inc SIU),AMZ Total Digital Stor,Assistant Chief Executive (Excl SIU),-130.42,ICT,1819Q02_PC00414
Sandwell Metropolitan Borough Council,http://www.sandwell.gov.uk/info/200202/performance_and_spending/3233/government_procurement_cards,06-Aug-2018,Childrens Services,AVH SUPPLIES,Childrens Services,30,R& M - Building Maint&Imp.,1819Q02_PC00415
Sandwell Metropolitan Borough Council,http://www.sandwell.gov.uk/info/200202/performance_and_spending/3233/government_procurement_cards,06-Aug-2018,Housing & Communities,EDGBASTON PALACE,Neighbourhoods,729.17,Rents,1819Q02_PC00416
Sandwell Metropolitan Borough Council,http://www.sandwell.gov.uk/info/200202/performance_and_spending/3233/government_procurement_cards,06-Aug-2018,Resources (Inc SIU),AMZN Mktp UK,Assistant Chief Executive (Excl SIU),2.41,ICT,1819Q02_PC00417
Sandwell Metropolitan Borough Council,http://www.sandwell.gov.uk/info/200202/performance_and_spending/3233/government_procurement_cards,06-Aug-2018,Adult Social Care Health and Wellbeing - Total,WORD360,Total Adult Social Care,22.5,Professional Services External,1819Q02_PC00418
Sandwell Metropolitan Borough Council,http://www.sandwell.gov.uk/info/200202/performance_and_spending/3233/government_procurement_cards,06-Aug-2018,Regeneration & Growth,ASSOCIATED CALIBRA,Regeneration And The Economy,208.33,Materials & Consumables,1819Q02_PC00419
Sandwell Metropolitan Borough Council,http://www.sandwell.gov.uk/info/200202/performance_and_spending/3233/government_procurement_cards,06-Aug-2018,Housing & Communities,AQUAID FRANCHISING LTD,Neighbourhoods,68.75,Catering Provisions,1819Q02_PC00420
Sandwell Metropolitan Borough Council,http://www.sandwell.gov.uk/info/200202/performance_and_spending/3233/government_procurement_cards,06-Aug-2018,Resources (Inc SIU),Amazon.co.uk,Assistant Chief Executive (Excl SIU),64.62,ICT,1819Q02_PC00421
Sandwell Metropolitan Borough Council,http://www.sandwell.gov.uk/info/200202/performance_and_spending/3233/government_procurement_cards,06-Aug-2018,Resources (Inc SIU),AMZN MKTP UK AMAZON.CO,Assistant Chief Executive (Excl SIU),131.65,ICT,1819Q02_PC00422
Sandwell Metropolitan Borough Council,http://www.sandwell.gov.uk/info/200202/performance_and_spending/3233/government_procurement_cards,06-Aug-2018,Total Housing Revenue Account,WWW.PCWB.COM,Total Housing Revenue Account,103.41,Materials & Consumables,1819Q02_PC00423
Sandwell Metropolitan Borough Council,http://www.sandwell.gov.uk/info/200202/performance_and_spending/3233/government_procurement_cards,06-Aug-2018,Housing & Communities,JTF WHOLESALE LTD,Neighbourhoods,5.97,Catering Provisions,1819Q02_PC00424
Sandwell Metropolitan Borough Council,http://www.sandwell.gov.uk/info/200202/performance_and_spending/3233/government_procurement_cards,06-Aug-2018,Regeneration & Growth,VUE NCS CITB HS&E TEST,Regeneration And The Economy,21,Operational Services,1819Q02_PC00425
Sandwell Metropolitan Borough Council,http://www.sandwell.gov.uk/info/200202/performance_and_spending/3233/government_procurement_cards,06-Aug-2018,Housing & Communities,ICELAND,Neighbourhoods,10.5,Catering Provisions,1819Q02_PC00426
Sandwell Metropolitan Borough Council,http://www.sandwell.gov.uk/info/200202/performance_and_spending/3233/government_procurement_cards,06-Aug-2018,Housing & Communities,WM MORRISON 063,Neighbourhoods,41.7,Catering Provisions,1819Q02_PC00427
Sandwell Metropolitan Borough Council,http://www.sandwell.gov.uk/info/200202/performance_and_spending/3233/government_procurement_cards,06-Aug-2018,Housing & Communities,WM MORRISON 063,Neighbourhoods,9.36,Catering Provisions,1819Q02_PC00428
Sandwell Metropolitan Borough Council,http://www.sandwell.gov.uk/info/200202/performance_and_spending/3233/government_procurement_cards,06-Aug-2018,Housing & Communities,WOLVERHAMPTON HOTEL,Neighbourhoods,70.83,Rents,1819Q02_PC00429
Sandwell Metropolitan Borough Council,http://www.sandwell.gov.uk/info/200202/performance_and_spending/3233/government_procurement_cards,06-Aug-2018,Housing & Communities,PP CHARTLEY CHUCKS,Neighbourhoods,24.5,Materials & Consumables,1819Q02_PC00430
Sandwell Metropolitan Borough Council,http://www.sandwell.gov.uk/info/200202/performance_and_spending/3233/government_procurement_cards,06-Aug-2018,Housing & Communities,HIGHFIELD HOUSE HO,Neighbourhoods,840,Rents,1819Q02_PC00431
Sandwell Metropolitan Borough Council,http://www.sandwell.gov.uk/info/200202/performance_and_spending/3233/government_procurement_cards,06-Aug-2018,Housing & Communities,TESCO STORES 6197,Neighbourhoods,10.08,Catering Provisions,1819Q02_PC00432
Sandwell Metropolitan Borough Council,http://www.sandwell.gov.uk/info/200202/performance_and_spending/3233/government_procurement_cards,06-Aug-2018,Housing & Communities,ICELAND,Neighbourhoods,12,Catering Provisions,1819Q02_PC00433
Sandwell Metropolitan Borough Council,http://www.sandwell.gov.uk/info/200202/performance_and_spending/3233/government_procurement_cards,06-Aug-2018,Individual School Budgets With Inclusion,AMZN Mktp UK,Individual School Budgets With Inclusion,12.78,Printing Stationery&Gen Office,1819Q02_PC00434
Sandwell Metropolitan Borough Council,http://www.sandwell.gov.uk/info/200202/performance_and_spending/3233/government_procurement_cards,06-Aug-2018,Individual School Budgets With Inclusion,AMZN Mktp UK,Individual School Budgets With Inclusion,76.67,Printing Stationery&Gen Office,1819Q02_PC00435
Sandwell Metropolitan Borough Council,http://www.sandwell.gov.uk/info/200202/performance_and_spending/3233/government_procurement_cards,06-Aug-2018,Individual School Budgets With Inclusion,AMZN Mktp UK,Individual School Budgets With Inclusion,76.67,Printing Stationery&Gen Office,1819Q02_PC00436
Sandwell Metropolitan Borough Council,http://www.sandwell.gov.uk/info/200202/performance_and_spending/3233/government_procurement_cards,07-Aug-2018,Housing & Communities,EDGBASTON PALACE,Neighbourhoods,-183.33,Rents,1819Q02_PC00437
Sandwell Metropolitan Borough Council,http://www.sandwell.gov.uk/info/200202/performance_and_spending/3233/government_procurement_cards,07-Aug-2018,Resources (Inc SIU),Amazon.co.uk,Assistant Chief Executive (Excl SIU),249.58,ICT,1819Q02_PC00438
Sandwell Metropolitan Borough Council,http://www.sandwell.gov.uk/info/200202/performance_and_spending/3233/government_procurement_cards,07-Aug-2018,Childrens Services,ASDA STORES LTD 5865,Childrens Services,1.49,Materials & Consumables,1819Q02_PC00439
Sandwell Metropolitan Borough Council,http://www.sandwell.gov.uk/info/200202/performance_and_spending/3233/government_procurement_cards,07-Aug-2018,Housing & Communities,MERC TECH SERVICES,Neighbourhoods,535,Fire Service Workshops,1819Q02_PC00440
Sandwell Metropolitan Borough Council,http://www.sandwell.gov.uk/info/200202/performance_and_spending/3233/government_procurement_cards,07-Aug-2018,Regeneration & Growth,THE COAL AUTHORITY,Regeneration And The Economy,467.5,Operational Services,1819Q02_PC00441
Sandwell Metropolitan Borough Council,http://www.sandwell.gov.uk/info/200202/performance_and_spending/3233/government_procurement_cards,07-Aug-2018,Housing & Communities,EDGBASTON PALACE,Neighbourhoods,183.33,Rents,1819Q02_PC00442
Sandwell Metropolitan Borough Council,http://www.sandwell.gov.uk/info/200202/performance_and_spending/3233/government_procurement_cards,07-Aug-2018,Housing & Communities,AMZN Mktp UK,Neighbourhoods,4.58,Ind. Emp Exp-Advertising,1819Q02_PC00443
Sandwell Metropolitan Borough Council,http://www.sandwell.gov.uk/info/200202/performance_and_spending/3233/government_procurement_cards,07-Aug-2018,Regeneration & Growth,NYCOMM LTD,Regeneration And The Economy,87.24,Printing Stationery&Gen Office,1819Q02_PC00444
Sandwell Metropolitan Borough Council,http://www.sandwell.gov.uk/info/200202/performance_and_spending/3233/government_procurement_cards,07-Aug-2018,Childrens Services,TIMPSON AT,Childrens Services,10,R& M - Building Maint&Imp.,1819Q02_PC00445
Sandwell Metropolitan Borough Council,http://www.sandwell.gov.uk/info/200202/performance_and_spending/3233/government_procurement_cards,07-Aug-2018,Housing & Communities,TRAVELODGE,Neighbourhoods,331.67,Rents,1819Q02_PC00446
Sandwell Metropolitan Borough Council,http://www.sandwell.gov.uk/info/200202/performance_and_spending/3233/government_procurement_cards,07-Aug-2018,Housing & Communities,AMZN MKTP UK AMAZON.CO,Neighbourhoods,1.49,Printing Stationery&Gen Office,1819Q02_PC00447
Sandwell Metropolitan Borough Council,http://www.sandwell.gov.uk/info/200202/performance_and_spending/3233/government_procurement_cards,07-Aug-2018,Housing & Communities,AMZN Mktp UK,Neighbourhoods,3.98,Materials & Consumables,1819Q02_PC00448
Sandwell Metropolitan Borough Council,http://www.sandwell.gov.uk/info/200202/performance_and_spending/3233/government_procurement_cards,07-Aug-2018,Childrens Services,ASDA STORES LTD 5865,Childrens Services,6.67,Materials & Consumables,1819Q02_PC00449
Sandwell Metropolitan Borough Council,http://www.sandwell.gov.uk/info/200202/performance_and_spending/3233/government_procurement_cards,07-Aug-2018,Childrens Services,ASDA SUPERSTORE,Childrens Services,100,Protective Clothing&Uniforms,1819Q02_PC00450
Sandwell Metropolitan Borough Council,http://www.sandwell.gov.uk/info/200202/performance_and_spending/3233/government_procurement_cards,07-Aug-2018,Childrens Services,ASDA SUPERSTORE,Childrens Services,100,Protective Clothing&Uniforms,1819Q02_PC00451
Sandwell Metropolitan Borough Council,http://www.sandwell.gov.uk/info/200202/performance_and_spending/3233/government_procurement_cards,07-Aug-2018,Housing & Communities,Amazon.co.uk,Neighbourhoods,13.76,Materials & Consumables,1819Q02_PC00452
Sandwell Metropolitan Borough Council,http://www.sandwell.gov.uk/info/200202/performance_and_spending/3233/government_procurement_cards,07-Aug-2018,Housing & Communities,Amazon.co.uk,Neighbourhoods,4.97,Materials & Consumables,1819Q02_PC00453
Sandwell Metropolitan Borough Council,http://www.sandwell.gov.uk/info/200202/performance_and_spending/3233/government_procurement_cards,07-Aug-2018,Childrens Services,ASDA GROCERIES ONLINE,Childrens Services,64.19,Catering Provisions,1819Q02_PC00454
Sandwell Metropolitan Borough Council,http://www.sandwell.gov.uk/info/200202/performance_and_spending/3233/government_procurement_cards,08-Aug-2018,Childrens Services,ASDA GROCERIES ONLINE,Childrens Services,-0.5,Catering Provisions,1819Q02_PC00455
Sandwell Metropolitan Borough Council,http://www.sandwell.gov.uk/info/200202/performance_and_spending/3233/government_procurement_cards,08-Aug-2018,Total Housing Revenue Account,EXPEDIA 7369510991197,Total Housing Revenue Account,-742.33,Day Care-Other Agencies,1819Q02_PC00456
Sandwell Metropolitan Borough Council,http://www.sandwell.gov.uk/info/200202/performance_and_spending/3233/government_procurement_cards,08-Aug-2018,Resources (Inc SIU),AMZ rhinocables,Assistant Chief Executive (Excl SIU),-2.41,ICT,1819Q02_PC00457
Sandwell Metropolitan Borough Council,http://www.sandwell.gov.uk/info/200202/performance_and_spending/3233/government_procurement_cards,08-Aug-2018,Total Housing Revenue Account,AMZN Mktp UK,Total Housing Revenue Account,41.62,Materials & Consumables,1819Q02_PC00458
Sandwell Metropolitan Borough Council,http://www.sandwell.gov.uk/info/200202/performance_and_spending/3233/government_procurement_cards,08-Aug-2018,Total Housing Revenue Account,AMZN Mktp UK,Total Housing Revenue Account,68.92,Materials & Consumables,1819Q02_PC00459
Sandwell Metropolitan Borough Council,http://www.sandwell.gov.uk/info/200202/performance_and_spending/3233/government_procurement_cards,08-Aug-2018,Resources (Inc SIU),AMZN Mktp UK,Assistant Chief Executive (Excl SIU),3.23,ICT,1819Q02_PC00460
Sandwell Metropolitan Borough Council,http://www.sandwell.gov.uk/info/200202/performance_and_spending/3233/government_procurement_cards,08-Aug-2018,Total Housing Revenue Account,AMZN Mktp UK,Total Housing Revenue Account,16.65,Materials & Consumables,1819Q02_PC00461
Sandwell Metropolitan Borough Council,http://www.sandwell.gov.uk/info/200202/performance_and_spending/3233/government_procurement_cards,08-Aug-2018,Total Housing Revenue Account,AMZN Mktp UK,Total Housing Revenue Account,18.98,Materials & Consumables,1819Q02_PC00462
Sandwell Metropolitan Borough Council,http://www.sandwell.gov.uk/info/200202/performance_and_spending/3233/government_procurement_cards,08-Aug-2018,Total Housing Revenue Account,WWW.PCWB.COM,Total Housing Revenue Account,23.18,Materials & Consumables,1819Q02_PC00463
Sandwell Metropolitan Borough Council,http://www.sandwell.gov.uk/info/200202/performance_and_spending/3233/government_procurement_cards,08-Aug-2018,Regeneration & Growth,TIMPSON LTD,Regeneration And The Economy,16.67,R & M - Security,1819Q02_PC00464
Sandwell Metropolitan Borough Council,http://www.sandwell.gov.uk/info/200202/performance_and_spending/3233/government_procurement_cards,08-Aug-2018,Housing & Communities,AMZN Mktp UK,Neighbourhoods,5.71,Materials & Consumables,1819Q02_PC00465
Sandwell Metropolitan Borough Council,http://www.sandwell.gov.uk/info/200202/performance_and_spending/3233/government_procurement_cards,08-Aug-2018,Housing & Communities,AMZN Mktp UK,Neighbourhoods,6.24,Materials & Consumables,1819Q02_PC00466
Sandwell Metropolitan Borough Council,http://www.sandwell.gov.uk/info/200202/performance_and_spending/3233/government_procurement_cards,08-Aug-2018,Regeneration & Growth,EMAP Publishing Ltd,Regeneration And The Economy,185.4,Subscriptions,1819Q02_PC00467
Sandwell Metropolitan Borough Council,http://www.sandwell.gov.uk/info/200202/performance_and_spending/3233/government_procurement_cards,08-Aug-2018,Resources (Inc SIU),Elucidate Contractor S,Assistant Chief Executive (Excl SIU),5,Subscriptions,1819Q02_PC00468
Sandwell Metropolitan Borough Council,http://www.sandwell.gov.uk/info/200202/performance_and_spending/3233/government_procurement_cards,08-Aug-2018,Resources (Inc SIU),Amazon.co.uk,Assistant Chief Executive (Excl SIU),24.93,ICT,1819Q02_PC00469
Sandwell Metropolitan Borough Council,http://www.sandwell.gov.uk/info/200202/performance_and_spending/3233/government_procurement_cards,08-Aug-2018,Resources (Inc SIU),BROMSGROVE STN SST,Assistant Chief Executive (Excl SIU),4.5,Public Transport,1819Q02_PC00470
Sandwell Metropolitan Borough Council,http://www.sandwell.gov.uk/info/200202/performance_and_spending/3233/government_procurement_cards,08-Aug-2018,Housing & Communities,AMZN MKTP UK AMAZON.CO,Neighbourhoods,11.8,Materials & Consumables,1819Q02_PC00471
Sandwell Metropolitan Borough Council,http://www.sandwell.gov.uk/info/200202/performance_and_spending/3233/government_procurement_cards,08-Aug-2018,Housing & Communities,AMZN MKTP UK AMAZON.CO,Neighbourhoods,2.81,Materials & Consumables,1819Q02_PC00472
Sandwell Metropolitan Borough Council,http://www.sandwell.gov.uk/info/200202/performance_and_spending/3233/government_procurement_cards,08-Aug-2018,Housing & Communities,AMZN MKTP UK AMAZON.CO,Neighbourhoods,5.94,Materials & Consumables,1819Q02_PC00473
Sandwell Metropolitan Borough Council,http://www.sandwell.gov.uk/info/200202/performance_and_spending/3233/government_procurement_cards,08-Aug-2018,Housing & Communities,AMZN Mktp UK,Neighbourhoods,5.58,Catering Provisions,1819Q02_PC00474
Sandwell Metropolitan Borough Council,http://www.sandwell.gov.uk/info/200202/performance_and_spending/3233/government_procurement_cards,08-Aug-2018,Housing & Communities,AMZN Mktp UK,Neighbourhoods,1.84,Printing Stationery&Gen Office,1819Q02_PC00475
Sandwell Metropolitan Borough Council,http://www.sandwell.gov.uk/info/200202/performance_and_spending/3233/government_procurement_cards,08-Aug-2018,Housing & Communities,SCREWFIX DIRECT LT,Neighbourhoods,14.69,Fixtures & Fittings,1819Q02_PC00476
Sandwell Metropolitan Borough Council,http://www.sandwell.gov.uk/info/200202/performance_and_spending/3233/government_procurement_cards,08-Aug-2018,Resources (Inc SIU),SANDWELL & DUD SST,Assistant Chief Executive (Excl SIU),3.8,Public Transport,1819Q02_PC00477
Sandwell Metropolitan Borough Council,http://www.sandwell.gov.uk/info/200202/performance_and_spending/3233/government_procurement_cards,08-Aug-2018,Corporate Management,Virgin Trains,Corporate Management,14.7,Public Transport,1819Q02_PC00478
Sandwell Metropolitan Borough Council,http://www.sandwell.gov.uk/info/200202/performance_and_spending/3233/government_procurement_cards,09-Aug-2018,Housing & Communities,TVLICENSING.CO.UK,Neighbourhoods,150.5,Licences,1819Q02_PC00479
Sandwell Metropolitan Borough Council,http://www.sandwell.gov.uk/info/200202/performance_and_spending/3233/government_procurement_cards,09-Aug-2018,Housing & Communities,PREMIER INN,Neighbourhoods,135.83,Operational Services,1819Q02_PC00480
Sandwell Metropolitan Borough Council,http://www.sandwell.gov.uk/info/200202/performance_and_spending/3233/government_procurement_cards,09-Aug-2018,Housing & Communities,Amazon.co.uk,Neighbourhoods,36.48,Equipment & Furniture,1819Q02_PC00481
Sandwell Metropolitan Borough Council,http://www.sandwell.gov.uk/info/200202/performance_and_spending/3233/government_procurement_cards,09-Aug-2018,Housing & Communities,Amazon.co.uk,Neighbourhoods,15.72,Materials & Consumables,1819Q02_PC00482
Sandwell Metropolitan Borough Council,http://www.sandwell.gov.uk/info/200202/performance_and_spending/3233/government_procurement_cards,09-Aug-2018,Housing & Communities,AMZN Mktp UK,Neighbourhoods,10.41,Materials & Consumables,1819Q02_PC00483
Sandwell Metropolitan Borough Council,http://www.sandwell.gov.uk/info/200202/performance_and_spending/3233/government_procurement_cards,09-Aug-2018,Housing & Communities,W M MORRISON PLC,Neighbourhoods,6.67,Materials & Consumables,1819Q02_PC00484
Sandwell Metropolitan Borough Council,http://www.sandwell.gov.uk/info/200202/performance_and_spending/3233/government_procurement_cards,09-Aug-2018,Housing & Communities,AMZN MKTP UK AMAZON.CO,Neighbourhoods,11.25,R& M - Building Maint&Imp.,1819Q02_PC00485
Sandwell Metropolitan Borough Council,http://www.sandwell.gov.uk/info/200202/performance_and_spending/3233/government_procurement_cards,09-Aug-2018,Resources (Inc SIU),AMZN Mktp UK,Assistant Chief Executive (Excl SIU),5.78,Printing Stationery&Gen Office,1819Q02_PC00486
Sandwell Metropolitan Borough Council,http://www.sandwell.gov.uk/info/200202/performance_and_spending/3233/government_procurement_cards,09-Aug-2018,Housing & Communities,WWW.TREASUREISLANDSWEE,Neighbourhoods,47.7,Materials & Consumables,1819Q02_PC00487
Sandwell Metropolitan Borough Council,http://www.sandwell.gov.uk/info/200202/performance_and_spending/3233/government_procurement_cards,09-Aug-2018,Corporate Management,WWW.PARTYDELIGHTS.CO.U,Corporate Management,155.28,Civic Events,1819Q02_PC00488
Sandwell Metropolitan Borough Council,http://www.sandwell.gov.uk/info/200202/performance_and_spending/3233/government_procurement_cards,09-Aug-2018,Childrens Services,HOLDZ LTD,Childrens Services,143.72,Materials & Consumables,1819Q02_PC00489
Sandwell Metropolitan Borough Council,http://www.sandwell.gov.uk/info/200202/performance_and_spending/3233/government_procurement_cards,09-Aug-2018,Total Housing Revenue Account,WWW.KANE.CO.UK,Total Housing Revenue Account,2088,Equipment & Furniture,1819Q02_PC00490
Sandwell Metropolitan Borough Council,http://www.sandwell.gov.uk/info/200202/performance_and_spending/3233/government_procurement_cards,09-Aug-2018,Housing & Communities,HOMEWARE SOLUTIONS,Neighbourhoods,43.12,Equipment & Furniture,1819Q02_PC00491
Sandwell Metropolitan Borough Council,http://www.sandwell.gov.uk/info/200202/performance_and_spending/3233/government_procurement_cards,09-Aug-2018,Housing & Communities,AMZN Mktp UK,Neighbourhoods,20.82,Catering Equipment,1819Q02_PC00492
Sandwell Metropolitan Borough Council,http://www.sandwell.gov.uk/info/200202/performance_and_spending/3233/government_procurement_cards,09-Aug-2018,Housing & Communities,Amazon.co.uk,Neighbourhoods,16.45,Materials & Consumables,1819Q02_PC00493
Sandwell Metropolitan Borough Council,http://www.sandwell.gov.uk/info/200202/performance_and_spending/3233/government_procurement_cards,09-Aug-2018,Childrens Services,B & M RETAIL,Childrens Services,8.97,Materials & Consumables,1819Q02_PC00494
Sandwell Metropolitan Borough Council,http://www.sandwell.gov.uk/info/200202/performance_and_spending/3233/government_procurement_cards,09-Aug-2018,Housing & Communities,AMZN MKTP UK AMAZON.CO,Neighbourhoods,14.77,Materials & Consumables,1819Q02_PC00495
Sandwell Metropolitan Borough Council,http://www.sandwell.gov.uk/info/200202/performance_and_spending/3233/government_procurement_cards,09-Aug-2018,Housing & Communities,AMZN MKTP UK AMAZON.CO,Neighbourhoods,2.8,Materials & Consumables,1819Q02_PC00496
Sandwell Metropolitan Borough Council,http://www.sandwell.gov.uk/info/200202/performance_and_spending/3233/government_procurement_cards,09-Aug-2018,Housing & Communities,Trainline,Neighbourhoods,111.6,Public Transport,1819Q02_PC00497
Sandwell Metropolitan Borough Council,http://www.sandwell.gov.uk/info/200202/performance_and_spending/3233/government_procurement_cards,09-Aug-2018,Housing & Communities,MUSIC EXCHANGE,Neighbourhoods,206.75,Materials & Consumables,1819Q02_PC00498
Sandwell Metropolitan Borough Council,http://www.sandwell.gov.uk/info/200202/performance_and_spending/3233/government_procurement_cards,09-Aug-2018,Housing & Communities,AMZN Mktp UK,Neighbourhoods,6.66,Materials & Consumables,1819Q02_PC00499
Sandwell Metropolitan Borough Council,http://www.sandwell.gov.uk/info/200202/performance_and_spending/3233/government_procurement_cards,09-Aug-2018,Housing & Communities,AMZN Mktp UK,Neighbourhoods,3.39,Catering Provisions,1819Q02_PC00500
Sandwell Metropolitan Borough Council,http://www.sandwell.gov.uk/info/200202/performance_and_spending/3233/government_procurement_cards,09-Aug-2018,Housing & Communities,BRITISH HEART,Neighbourhoods,79.17,Operational Services,1819Q02_PC00501
Sandwell Metropolitan Borough Council,http://www.sandwell.gov.uk/info/200202/performance_and_spending/3233/government_procurement_cards,10-Aug-2018,Regeneration & Growth,HILTON,Regeneration And The Economy,142.37,Conference Expenses,1819Q02_PC00502
Sandwell Metropolitan Borough Council,http://www.sandwell.gov.uk/info/200202/performance_and_spending/3233/government_procurement_cards,10-Aug-2018,Regeneration & Growth,HILTON,Regeneration And The Economy,142.37,Conference Expenses,1819Q02_PC00503
Sandwell Metropolitan Borough Council,http://www.sandwell.gov.uk/info/200202/performance_and_spending/3233/government_procurement_cards,10-Aug-2018,Housing & Communities,HIGHFIELD HOUSE HO,Neighbourhoods,624.17,Rents,1819Q02_PC00504
Sandwell Metropolitan Borough Council,http://www.sandwell.gov.uk/info/200202/performance_and_spending/3233/government_procurement_cards,10-Aug-2018,Housing & Communities,HIGHFIELD HOUSE HO,Neighbourhoods,525,Rents,1819Q02_PC00505
Sandwell Metropolitan Borough Council,http://www.sandwell.gov.uk/info/200202/performance_and_spending/3233/government_procurement_cards,10-Aug-2018,Resources (Inc SIU),AMZN Mktp UK,Assistant Chief Executive (Excl SIU),17.95,Printing Stationery&Gen Office,1819Q02_PC00506
Sandwell Metropolitan Borough Council,http://www.sandwell.gov.uk/info/200202/performance_and_spending/3233/government_procurement_cards,10-Aug-2018,Regeneration & Growth,WESTERN POWER DISTRIBU,Regeneration And The Economy,779.22,Professional Services External,1819Q02_PC00507
Sandwell Metropolitan Borough Council,http://www.sandwell.gov.uk/info/200202/performance_and_spending/3233/government_procurement_cards,10-Aug-2018,Resources (Inc SIU),AMZN Mktp UK,Assistant Chief Executive (Excl SIU),16.88,Printing Stationery&Gen Office,1819Q02_PC00508
Sandwell Metropolitan Borough Council,http://www.sandwell.gov.uk/info/200202/performance_and_spending/3233/government_procurement_cards,10-Aug-2018,Resources (Inc SIU),AMZN Mktp UK,Assistant Chief Executive (Excl SIU),3.14,Printing Stationery&Gen Office,1819Q02_PC00509
Sandwell Metropolitan Borough Council,http://www.sandwell.gov.uk/info/200202/performance_and_spending/3233/government_procurement_cards,10-Aug-2018,Housing & Communities,WWW.ARGOS.CO.UK,Neighbourhoods,136.62,Equipment & Furniture,1819Q02_PC00510
Sandwell Metropolitan Borough Council,http://www.sandwell.gov.uk/info/200202/performance_and_spending/3233/government_procurement_cards,10-Aug-2018,Resources (Inc SIU),SAINSBURYS SACAT0558,Assistant Chief Executive (Excl SIU),4.67,Catering Provisions,1819Q02_PC00511
Sandwell Metropolitan Borough Council,http://www.sandwell.gov.uk/info/200202/performance_and_spending/3233/government_procurement_cards,10-Aug-2018,Childrens Services,AMZN Mktp UK,Childrens Services,2.4,Fixtures & Fittings,1819Q02_PC00512
Sandwell Metropolitan Borough Council,http://www.sandwell.gov.uk/info/200202/performance_and_spending/3233/government_procurement_cards,10-Aug-2018,Childrens Services,BAKER ROSS,Childrens Services,178.28,Materials & Consumables,1819Q02_PC00513
Sandwell Metropolitan Borough Council,http://www.sandwell.gov.uk/info/200202/performance_and_spending/3233/government_procurement_cards,10-Aug-2018,Regeneration & Growth,Trainline,Regeneration And The Economy,129.5,Public Transport,1819Q02_PC00514
Sandwell Metropolitan Borough Council,http://www.sandwell.gov.uk/info/200202/performance_and_spending/3233/government_procurement_cards,10-Aug-2018,Regeneration & Growth,Trainline,Regeneration And The Economy,105.5,Public Transport,1819Q02_PC00515
Sandwell Metropolitan Borough Council,http://www.sandwell.gov.uk/info/200202/performance_and_spending/3233/government_procurement_cards,10-Aug-2018,Housing & Communities,PAYPAL  SROYALTY,Neighbourhoods,17.05,Materials & Consumables,1819Q02_PC00516
Sandwell Metropolitan Borough Council,http://www.sandwell.gov.uk/info/200202/performance_and_spending/3233/government_procurement_cards,10-Aug-2018,Regeneration & Growth,Trainline,Regeneration And The Economy,19.25,Public Transport,1819Q02_PC00517
Sandwell Metropolitan Borough Council,http://www.sandwell.gov.uk/info/200202/performance_and_spending/3233/government_procurement_cards,10-Aug-2018,Housing & Communities,PAYPAL  TINAMARIEAR,Neighbourhoods,197.1,Equipment & Furniture,1819Q02_PC00518
Sandwell Metropolitan Borough Council,http://www.sandwell.gov.uk/info/200202/performance_and_spending/3233/government_procurement_cards,10-Aug-2018,Childrens Services,AMZN Mktp UK,Childrens Services,7.73,Materials & Consumables,1819Q02_PC00519
Sandwell Metropolitan Borough Council,http://www.sandwell.gov.uk/info/200202/performance_and_spending/3233/government_procurement_cards,10-Aug-2018,Adult Social Care Health and Wellbeing - Total,AMZN Mktp UK,Total Adult Social Care,94.22,ICT,1819Q02_PC00520
Sandwell Metropolitan Borough Council,http://www.sandwell.gov.uk/info/200202/performance_and_spending/3233/government_procurement_cards,10-Aug-2018,Resources (Inc SIU),SAINSBURYS SACAT0558,Assistant Chief Executive (Excl SIU),1.6,Catering Provisions,1819Q02_PC00521
Sandwell Metropolitan Borough Council,http://www.sandwell.gov.uk/info/200202/performance_and_spending/3233/government_procurement_cards,10-Aug-2018,Housing & Communities,BILLINGHAMS FLORISTS,Neighbourhoods,35,Materials & Consumables,1819Q02_PC00522
Sandwell Metropolitan Borough Council,http://www.sandwell.gov.uk/info/200202/performance_and_spending/3233/government_procurement_cards,10-Aug-2018,Housing & Communities,AMZN Mktp UK,Neighbourhoods,5.99,Materials & Consumables,1819Q02_PC00523
Sandwell Metropolitan Borough Council,http://www.sandwell.gov.uk/info/200202/performance_and_spending/3233/government_procurement_cards,10-Aug-2018,Housing & Communities,Trainline,Neighbourhoods,65.3,Public Transport,1819Q02_PC00524
Sandwell Metropolitan Borough Council,http://www.sandwell.gov.uk/info/200202/performance_and_spending/3233/government_procurement_cards,10-Aug-2018,Childrens Services,ASDA GROCERIES ONLINE,Childrens Services,-5.65,Catering Provisions,1819Q02_PC00525
Sandwell Metropolitan Borough Council,http://www.sandwell.gov.uk/info/200202/performance_and_spending/3233/government_procurement_cards,10-Aug-2018,Childrens Services,ASDA GROCERIES ONLINE,Childrens Services,178.5,Catering Provisions,1819Q02_PC00526
Sandwell Metropolitan Borough Council,http://www.sandwell.gov.uk/info/200202/performance_and_spending/3233/government_procurement_cards,13-Aug-2018,Resources (Inc SIU),AMZN MKTP UK AMAZON.CO,Assistant Chief Executive (Excl SIU),173.29,ICT,1819Q02_PC00527
Sandwell Metropolitan Borough Council,http://www.sandwell.gov.uk/info/200202/performance_and_spending/3233/government_procurement_cards,13-Aug-2018,Housing & Communities,PREMIER INN,Neighbourhoods,570,Rents,1819Q02_PC00528
Sandwell Metropolitan Borough Council,http://www.sandwell.gov.uk/info/200202/performance_and_spending/3233/government_procurement_cards,13-Aug-2018,Adult Social Care Health and Wellbeing - Total,KIKATEK,Total Adult Social Care,19.28,Printing Stationery&Gen Office,1819Q02_PC00529
Sandwell Metropolitan Borough Council,http://www.sandwell.gov.uk/info/200202/performance_and_spending/3233/government_procurement_cards,13-Aug-2018,Resources (Inc SIU),AMZN MKTP UK AMAZON.CO,Assistant Chief Executive (Excl SIU),14.97,ICT,1819Q02_PC00530
Sandwell Metropolitan Borough Council,http://www.sandwell.gov.uk/info/200202/performance_and_spending/3233/government_procurement_cards,13-Aug-2018,Housing & Communities,THE EDGBASTON PALA,Neighbourhoods,729.17,Rents,1819Q02_PC00531
Sandwell Metropolitan Borough Council,http://www.sandwell.gov.uk/info/200202/performance_and_spending/3233/government_procurement_cards,13-Aug-2018,Childrens Services,AMZN Mktp UK,Childrens Services,4.99,Fixtures & Fittings,1819Q02_PC00532
Sandwell Metropolitan Borough Council,http://www.sandwell.gov.uk/info/200202/performance_and_spending/3233/government_procurement_cards,13-Aug-2018,Housing & Communities,AMZ Amazon.co.uk,Neighbourhoods,-2.21,Materials & Consumables,1819Q02_PC00533
Sandwell Metropolitan Borough Council,http://www.sandwell.gov.uk/info/200202/performance_and_spending/3233/government_procurement_cards,13-Aug-2018,Housing & Communities,AMZN Mktp UK,Neighbourhoods,7.8,Materials & Consumables,1819Q02_PC00534
Sandwell Metropolitan Borough Council,http://www.sandwell.gov.uk/info/200202/performance_and_spending/3233/government_procurement_cards,13-Aug-2018,Total Housing Revenue Account,DEANOSKIDSE,Total Housing Revenue Account,160,Civic Events,1819Q02_PC00535
Sandwell Metropolitan Borough Council,http://www.sandwell.gov.uk/info/200202/performance_and_spending/3233/government_procurement_cards,13-Aug-2018,Housing & Communities,HIGHFIELD HOUSE HO,Neighbourhoods,833.4,Rents,1819Q02_PC00536
Sandwell Metropolitan Borough Council,http://www.sandwell.gov.uk/info/200202/performance_and_spending/3233/government_procurement_cards,13-Aug-2018,Resources (Inc SIU),AMZN Mktp UK,Assistant Chief Executive (Excl SIU),33.32,Printing Stationery&Gen Office,1819Q02_PC00537
Sandwell Metropolitan Borough Council,http://www.sandwell.gov.uk/info/200202/performance_and_spending/3233/government_procurement_cards,13-Aug-2018,Housing & Communities,AMZN Mktp UK,Neighbourhoods,7.12,Materials & Consumables,1819Q02_PC00538
Sandwell Metropolitan Borough Council,http://www.sandwell.gov.uk/info/200202/performance_and_spending/3233/government_procurement_cards,13-Aug-2018,Childrens Services,Amazon.co.uk,Childrens Services,27.31,Printing Stationery&Gen Office,1819Q02_PC00539
Sandwell Metropolitan Borough Council,http://www.sandwell.gov.uk/info/200202/performance_and_spending/3233/government_procurement_cards,13-Aug-2018,Childrens Services,Amazon.co.uk,Childrens Services,108.37,Equipment & Furniture,1819Q02_PC00540
Sandwell Metropolitan Borough Council,http://www.sandwell.gov.uk/info/200202/performance_and_spending/3233/government_procurement_cards,13-Aug-2018,Housing & Communities,PP RENTAMASCOT,Neighbourhoods,150,Civic Events,1819Q02_PC00541
Sandwell Metropolitan Borough Council,http://www.sandwell.gov.uk/info/200202/performance_and_spending/3233/government_procurement_cards,13-Aug-2018,Housing & Communities,PP RENTAMASCOT,Neighbourhoods,104,Civic Events,1819Q02_PC00542
Sandwell Metropolitan Borough Council,http://www.sandwell.gov.uk/info/200202/performance_and_spending/3233/government_procurement_cards,14-Aug-2018,Childrens Services,LYCO DIRECT LTD,Childrens Services,20.24,Fixtures & Fittings,1819Q02_PC00543
Sandwell Metropolitan Borough Council,http://www.sandwell.gov.uk/info/200202/performance_and_spending/3233/government_procurement_cards,14-Aug-2018,Childrens Services,ASDA STORES LTD 5865,Childrens Services,6.69,Catering Provisions,1819Q02_PC00544
Sandwell Metropolitan Borough Council,http://www.sandwell.gov.uk/info/200202/performance_and_spending/3233/government_procurement_cards,14-Aug-2018,Childrens Services,ASDA STORES LTD 5865,Childrens Services,4.17,Materials & Consumables,1819Q02_PC00545
Sandwell Metropolitan Borough Council,http://www.sandwell.gov.uk/info/200202/performance_and_spending/3233/government_procurement_cards,14-Aug-2018,Childrens Services,AMZN Mktp UK,Childrens Services,4.72,Printing Stationery&Gen Office,1819Q02_PC00546
Sandwell Metropolitan Borough Council,http://www.sandwell.gov.uk/info/200202/performance_and_spending/3233/government_procurement_cards,14-Aug-2018,Childrens Services,TESCO STORES 2335,Childrens Services,44.04,Ind. Emp Exp-Staff Dev&Training,1819Q02_PC00547
Sandwell Metropolitan Borough Council,http://www.sandwell.gov.uk/info/200202/performance_and_spending/3233/government_procurement_cards,14-Aug-2018,Adult Social Care Health and Wellbeing - Total,AMZN Mktp UK,Total Adult Social Care,55.2,ICT,1819Q02_PC00548
Sandwell Metropolitan Borough Council,http://www.sandwell.gov.uk/info/200202/performance_and_spending/3233/government_procurement_cards,14-Aug-2018,Childrens Services,ASDA STORES LTD 5865,Childrens Services,4.19,Catering Provisions,1819Q02_PC00549
Sandwell Metropolitan Borough Council,http://www.sandwell.gov.uk/info/200202/performance_and_spending/3233/government_procurement_cards,14-Aug-2018,Housing & Communities,SANDWELL COLLEGE,Neighbourhoods,600,Ind. Emp Exp-Staff Dev&Training,1819Q02_PC00550
Sandwell Metropolitan Borough Council,http://www.sandwell.gov.uk/info/200202/performance_and_spending/3233/government_procurement_cards,14-Aug-2018,Childrens Services,ASDA GROCERIES ONLINE,Childrens Services,-4.08,Catering Provisions,1819Q02_PC00551
Sandwell Metropolitan Borough Council,http://www.sandwell.gov.uk/info/200202/performance_and_spending/3233/government_procurement_cards,14-Aug-2018,Childrens Services,ASDA GROCERIES ONLINE,Childrens Services,94.56,Catering Provisions,1819Q02_PC00552
Sandwell Metropolitan Borough Council,http://www.sandwell.gov.uk/info/200202/performance_and_spending/3233/government_procurement_cards,14-Aug-2018,Housing & Communities,HIGHFIELD HOUSE HO,Neighbourhoods,6.6,Rents,1819Q02_PC00553
Sandwell Metropolitan Borough Council,http://www.sandwell.gov.uk/info/200202/performance_and_spending/3233/government_procurement_cards,14-Aug-2018,Resources (Inc SIU),AMZN Mktp UK,Assistant Chief Executive (Excl SIU),12.1,Printing Stationery&Gen Office,1819Q02_PC00554
Sandwell Metropolitan Borough Council,http://www.sandwell.gov.uk/info/200202/performance_and_spending/3233/government_procurement_cards,14-Aug-2018,Resources (Inc SIU),AMZN Mktp UK,Assistant Chief Executive (Excl SIU),19.12,Printing Stationery&Gen Office,1819Q02_PC00555
Sandwell Metropolitan Borough Council,http://www.sandwell.gov.uk/info/200202/performance_and_spending/3233/government_procurement_cards,15-Aug-2018,Housing & Communities,AMZN Mktp UK,Neighbourhoods,10.03,Materials & Consumables,1819Q02_PC00556
Sandwell Metropolitan Borough Council,http://www.sandwell.gov.uk/info/200202/performance_and_spending/3233/government_procurement_cards,15-Aug-2018,Housing & Communities,AMZN Mktp UK,Neighbourhoods,2.93,Materials & Consumables,1819Q02_PC00557
Sandwell Metropolitan Borough Council,http://www.sandwell.gov.uk/info/200202/performance_and_spending/3233/government_procurement_cards,15-Aug-2018,Childrens Services,ADVANCE TRAINING ACADE,Childrens Services,291.66,Ind. Emp Exp-Staff Dev&Training,1819Q02_PC00558
Sandwell Metropolitan Borough Council,http://www.sandwell.gov.uk/info/200202/performance_and_spending/3233/government_procurement_cards,15-Aug-2018,Resources (Inc SIU),Virgin Trains,Assistant Chief Executive (Excl SIU),35.5,Public Transport,1819Q02_PC00559
Sandwell Metropolitan Borough Council,http://www.sandwell.gov.uk/info/200202/performance_and_spending/3233/government_procurement_cards,15-Aug-2018,Resources (Inc SIU),Virgin Trains,Assistant Chief Executive (Excl SIU),46,Public Transport,1819Q02_PC00560
Sandwell Metropolitan Borough Council,http://www.sandwell.gov.uk/info/200202/performance_and_spending/3233/government_procurement_cards,15-Aug-2018,Total Housing Revenue Account,IET PUBLICATIONS,Total Housing Revenue Account,1110.72,Printing Stationery&Gen Office,1819Q02_PC00561
Sandwell Metropolitan Borough Council,http://www.sandwell.gov.uk/info/200202/performance_and_spending/3233/government_procurement_cards,15-Aug-2018,Housing & Communities,AMZN Mktp UK,Neighbourhoods,9.07,Materials & Consumables,1819Q02_PC00562
Sandwell Metropolitan Borough Council,http://www.sandwell.gov.uk/info/200202/performance_and_spending/3233/government_procurement_cards,15-Aug-2018,Housing & Communities,AMZN Mktp UK,Neighbourhoods,19.87,Materials & Consumables,1819Q02_PC00563
Sandwell Metropolitan Borough Council,http://www.sandwell.gov.uk/info/200202/performance_and_spending/3233/government_procurement_cards,15-Aug-2018,Resources (Inc SIU),ARCO LTD,Strategic Investment Unit,31.98,Protective Clothing&Uniforms,1819Q02_PC00564
Sandwell Metropolitan Borough Council,http://www.sandwell.gov.uk/info/200202/performance_and_spending/3233/government_procurement_cards,15-Aug-2018,Resources (Inc SIU),AMZN Mktp UK,Assistant Chief Executive (Excl SIU),29.49,Materials & Consumables,1819Q02_PC00565
Sandwell Metropolitan Borough Council,http://www.sandwell.gov.uk/info/200202/performance_and_spending/3233/government_procurement_cards,15-Aug-2018,Childrens Services,ASDA GROCERIES ONLINE,Childrens Services,-3.48,Catering Provisions,1819Q02_PC00566
Sandwell Metropolitan Borough Council,http://www.sandwell.gov.uk/info/200202/performance_and_spending/3233/government_procurement_cards,15-Aug-2018,Childrens Services,ASDA GROCERIES ONLINE,Childrens Services,114.05,Catering Provisions,1819Q02_PC00567
Sandwell Metropolitan Borough Council,http://www.sandwell.gov.uk/info/200202/performance_and_spending/3233/government_procurement_cards,16-Aug-2018,Total Housing Revenue Account,AMZN Mktp UK,Total Housing Revenue Account,28.32,Equipment & Furniture,1819Q02_PC00568
Sandwell Metropolitan Borough Council,http://www.sandwell.gov.uk/info/200202/performance_and_spending/3233/government_procurement_cards,16-Aug-2018,Resources (Inc SIU),Amazon.co.uk,Assistant Chief Executive (Excl SIU),15.06,Equipment & Furniture,1819Q02_PC00569
Sandwell Metropolitan Borough Council,http://www.sandwell.gov.uk/info/200202/performance_and_spending/3233/government_procurement_cards,16-Aug-2018,Adult Social Care Health and Wellbeing - Total,GT APPLIANCE WAREHOUSE,Total Adult Social Care,1000,Fixtures & Fittings,1819Q02_PC00570
Sandwell Metropolitan Borough Council,http://www.sandwell.gov.uk/info/200202/performance_and_spending/3233/government_procurement_cards,16-Aug-2018,Regeneration & Growth,WESTERN POWER DISTRIBU,Regeneration And The Economy,1016.81,Operational Services,1819Q02_PC00571
Sandwell Metropolitan Borough Council,http://www.sandwell.gov.uk/info/200202/performance_and_spending/3233/government_procurement_cards,16-Aug-2018,Housing & Communities,BIRMINGHAM CATERING HI,Neighbourhoods,74,Equipment & Furniture,1819Q02_PC00572
Sandwell Metropolitan Borough Council,http://www.sandwell.gov.uk/info/200202/performance_and_spending/3233/government_procurement_cards,16-Aug-2018,Housing & Communities,SMITH YORK FINE ART PU,Neighbourhoods,208.33,Printing Stationery&Gen Office,1819Q02_PC00573
Sandwell Metropolitan Borough Council,http://www.sandwell.gov.uk/info/200202/performance_and_spending/3233/government_procurement_cards,16-Aug-2018,Housing & Communities,TRAVELODGE,Neighbourhoods,50.83,Rents,1819Q02_PC00574
Sandwell Metropolitan Borough Council,http://www.sandwell.gov.uk/info/200202/performance_and_spending/3233/government_procurement_cards,16-Aug-2018,Resources (Inc SIU),POST OFFICE COUNTER,Assistant Chief Executive (Excl SIU),32.5,"Postages, Carriage & Courier Services",1819Q02_PC00575
Sandwell Metropolitan Borough Council,http://www.sandwell.gov.uk/info/200202/performance_and_spending/3233/government_procurement_cards,16-Aug-2018,Childrens Services,Spotify P07101E702,Childrens Services,8.32,Subscriptions,1819Q02_PC00576
Sandwell Metropolitan Borough Council,http://www.sandwell.gov.uk/info/200202/performance_and_spending/3233/government_procurement_cards,16-Aug-2018,Resources (Inc SIU),RELIANCE MEDICAL LTD,Assistant Chief Executive (Excl SIU),57.19,Materials & Consumables,1819Q02_PC00577
Sandwell Metropolitan Borough Council,http://www.sandwell.gov.uk/info/200202/performance_and_spending/3233/government_procurement_cards,16-Aug-2018,Childrens Services,POST OFFICE COUNTER,Childrens Services,8.6,"Postages, Carriage & Courier Services",1819Q02_PC00578
Sandwell Metropolitan Borough Council,http://www.sandwell.gov.uk/info/200202/performance_and_spending/3233/government_procurement_cards,16-Aug-2018,Childrens Services,POST OFFICE COUNTER,Childrens Services,6.5,"Postages, Carriage & Courier Services",1819Q02_PC00579
Sandwell Metropolitan Borough Council,http://www.sandwell.gov.uk/info/200202/performance_and_spending/3233/government_procurement_cards,16-Aug-2018,Childrens Services,POST OFFICE COUNTER,Childrens Services,6.5,"Postages, Carriage & Courier Services",1819Q02_PC00580
Sandwell Metropolitan Borough Council,http://www.sandwell.gov.uk/info/200202/performance_and_spending/3233/government_procurement_cards,16-Aug-2018,Childrens Services,POST OFFICE COUNTER,Childrens Services,67,"Postages, Carriage & Courier Services",1819Q02_PC00581
Sandwell Metropolitan Borough Council,http://www.sandwell.gov.uk/info/200202/performance_and_spending/3233/government_procurement_cards,16-Aug-2018,Housing & Communities,DVSA MOT COMP 2,Neighbourhoods,1025,Licences&Test Fees,1819Q02_PC00582
Sandwell Metropolitan Borough Council,http://www.sandwell.gov.uk/info/200202/performance_and_spending/3233/government_procurement_cards,16-Aug-2018,Housing & Communities,NOCHEX. AWAY WITH THE,Neighbourhoods,23.75,Materials & Consumables,1819Q02_PC00583
Sandwell Metropolitan Borough Council,http://www.sandwell.gov.uk/info/200202/performance_and_spending/3233/government_procurement_cards,16-Aug-2018,Resources (Inc SIU),KNOWDATA LIMITED,Assistant Chief Executive (Excl SIU),594,Ind. Emp Exp-Staff Dev&Training,1819Q02_PC00584
Sandwell Metropolitan Borough Council,http://www.sandwell.gov.uk/info/200202/performance_and_spending/3233/government_procurement_cards,16-Aug-2018,Resources (Inc SIU),SANDWELL & DUD SST,Assistant Chief Executive (Excl SIU),3.17,Public Transport,1819Q02_PC00585
Sandwell Metropolitan Borough Council,http://www.sandwell.gov.uk/info/200202/performance_and_spending/3233/government_procurement_cards,16-Aug-2018,Adult Social Care Health and Wellbeing - Total,SAGE PUBLICATIONS UK,Total Adult Social Care,25.99,Equipment & Furniture,1819Q02_PC00586
Sandwell Metropolitan Borough Council,http://www.sandwell.gov.uk/info/200202/performance_and_spending/3233/government_procurement_cards,17-Aug-2018,Regeneration & Growth,THE COAL AUTHORITY,Regeneration And The Economy,170,Operational Services,1819Q02_PC00587
Sandwell Metropolitan Borough Council,http://www.sandwell.gov.uk/info/200202/performance_and_spending/3233/government_procurement_cards,17-Aug-2018,Housing & Communities,SCREWFIX DIRECT,Neighbourhoods,49.15,Cleaning,1819Q02_PC00588
Sandwell Metropolitan Borough Council,http://www.sandwell.gov.uk/info/200202/performance_and_spending/3233/government_procurement_cards,17-Aug-2018,Housing & Communities,AMZN Mktp UK,Neighbourhoods,8.32,Materials & Consumables,1819Q02_PC00589
Sandwell Metropolitan Borough Council,http://www.sandwell.gov.uk/info/200202/performance_and_spending/3233/government_procurement_cards,17-Aug-2018,Housing & Communities,HIGHFIELD HOUSE HO,Neighbourhoods,624.17,Rents,1819Q02_PC00590
Sandwell Metropolitan Borough Council,http://www.sandwell.gov.uk/info/200202/performance_and_spending/3233/government_procurement_cards,17-Aug-2018,Housing & Communities,HIGHFIELD HOUSE HO,Neighbourhoods,525,Rents,1819Q02_PC00591
Sandwell Metropolitan Borough Council,http://www.sandwell.gov.uk/info/200202/performance_and_spending/3233/government_procurement_cards,17-Aug-2018,Resources (Inc SIU),POUNDLAND,Assistant Chief Executive (Excl SIU),10.83,Printing Stationery&Gen Office,1819Q02_PC00592
Sandwell Metropolitan Borough Council,http://www.sandwell.gov.uk/info/200202/performance_and_spending/3233/government_procurement_cards,17-Aug-2018,Housing & Communities,SCBE CASH TILL DIR,Neighbourhoods,321,Equipment & Furniture,1819Q02_PC00593
Sandwell Metropolitan Borough Council,http://www.sandwell.gov.uk/info/200202/performance_and_spending/3233/government_procurement_cards,17-Aug-2018,Housing & Communities,MALIBU CORP LTD,Neighbourhoods,92.5,Fixtures & Fittings,1819Q02_PC00594
Sandwell Metropolitan Borough Council,http://www.sandwell.gov.uk/info/200202/performance_and_spending/3233/government_procurement_cards,17-Aug-2018,Housing & Communities,AMZN Mktp UK,Neighbourhoods,4.16,Materials & Consumables,1819Q02_PC00595
Sandwell Metropolitan Borough Council,http://www.sandwell.gov.uk/info/200202/performance_and_spending/3233/government_procurement_cards,17-Aug-2018,Housing & Communities,AMZN Mktp UK,Neighbourhoods,6.66,Materials & Consumables,1819Q02_PC00596
Sandwell Metropolitan Borough Council,http://www.sandwell.gov.uk/info/200202/performance_and_spending/3233/government_procurement_cards,17-Aug-2018,Resources (Inc SIU),Amazon.co.uk,Assistant Chief Executive (Excl SIU),6.57,ICT,1819Q02_PC00597
Sandwell Metropolitan Borough Council,http://www.sandwell.gov.uk/info/200202/performance_and_spending/3233/government_procurement_cards,17-Aug-2018,Total Housing Revenue Account,AMZN Mktp UK,Total Housing Revenue Account,29.96,Materials & Consumables,1819Q02_PC00598
Sandwell Metropolitan Borough Council,http://www.sandwell.gov.uk/info/200202/performance_and_spending/3233/government_procurement_cards,17-Aug-2018,Resources (Inc SIU),IKEA LIMITED,Assistant Chief Executive (Excl SIU),213.33,Equipment & Furniture,1819Q02_PC00599
Sandwell Metropolitan Borough Council,http://www.sandwell.gov.uk/info/200202/performance_and_spending/3233/government_procurement_cards,17-Aug-2018,Housing & Communities,AMZN MKTP UK AMAZON.CO,Neighbourhoods,6.31,Materials & Consumables,1819Q02_PC00600
Sandwell Metropolitan Borough Council,http://www.sandwell.gov.uk/info/200202/performance_and_spending/3233/government_procurement_cards,17-Aug-2018,Regeneration & Growth,VUE NCS CITB HS&E TEST,Regeneration And The Economy,21,Ind. Emp Exp-Staff Dev&Training,1819Q02_PC00601
Sandwell Metropolitan Borough Council,http://www.sandwell.gov.uk/info/200202/performance_and_spending/3233/government_procurement_cards,17-Aug-2018,Regeneration & Growth,VUE NCS CITB HS&E TEST,Regeneration And The Economy,21,Ind. Emp Exp-Staff Dev&Training,1819Q02_PC00602
Sandwell Metropolitan Borough Council,http://www.sandwell.gov.uk/info/200202/performance_and_spending/3233/government_procurement_cards,17-Aug-2018,Childrens Services,ASDA GROCERIES ONLINE,Childrens Services,-3,Catering Provisions,1819Q02_PC00603
Sandwell Metropolitan Borough Council,http://www.sandwell.gov.uk/info/200202/performance_and_spending/3233/government_procurement_cards,17-Aug-2018,Childrens Services,ASDA GROCERIES ONLINE,Childrens Services,131.49,Catering Provisions,1819Q02_PC00604
Sandwell Metropolitan Borough Council,http://www.sandwell.gov.uk/info/200202/performance_and_spending/3233/government_procurement_cards,17-Aug-2018,Housing & Communities,TRAVELODGE,Neighbourhoods,44.17,Operational Services,1819Q02_PC00605
Sandwell Metropolitan Borough Council,http://www.sandwell.gov.uk/info/200202/performance_and_spending/3233/government_procurement_cards,20-Aug-2018,Housing & Communities,AMZN MKTP UK AMAZON.CO,Neighbourhoods,12.9,Materials & Consumables,1819Q02_PC00606
Sandwell Metropolitan Borough Council,http://www.sandwell.gov.uk/info/200202/performance_and_spending/3233/government_procurement_cards,20-Aug-2018,Regeneration & Growth,HILTON,Regeneration And The Economy,117.33,Conference Expenses,1819Q02_PC00607
Sandwell Metropolitan Borough Council,http://www.sandwell.gov.uk/info/200202/performance_and_spending/3233/government_procurement_cards,20-Aug-2018,Regeneration & Growth,HILTON,Regeneration And The Economy,117.33,Conference Expenses,1819Q02_PC00608
Sandwell Metropolitan Borough Council,http://www.sandwell.gov.uk/info/200202/performance_and_spending/3233/government_procurement_cards,20-Aug-2018,Housing & Communities,ORBIT BEARING & TRANS,Neighbourhoods,8.1,Fire Service Workshops,1819Q02_PC00609
Sandwell Metropolitan Borough Council,http://www.sandwell.gov.uk/info/200202/performance_and_spending/3233/government_procurement_cards,20-Aug-2018,Childrens Services,ASDA STORES LTD 5865,Childrens Services,13.75,Materials & Consumables,1819Q02_PC00610
Sandwell Metropolitan Borough Council,http://www.sandwell.gov.uk/info/200202/performance_and_spending/3233/government_procurement_cards,20-Aug-2018,Total Housing Revenue Account,STAFFORDSHIRE BLDS SUP,Total Housing Revenue Account,38.16,Materials & Consumables,1819Q02_PC00611
Sandwell Metropolitan Borough Council,http://www.sandwell.gov.uk/info/200202/performance_and_spending/3233/government_procurement_cards,20-Aug-2018,Total Housing Revenue Account,STAFFORDSHIRE BLDS SUP,Total Housing Revenue Account,214.62,Materials & Consumables,1819Q02_PC00612
Sandwell Metropolitan Borough Council,http://www.sandwell.gov.uk/info/200202/performance_and_spending/3233/government_procurement_cards,20-Aug-2018,Housing & Communities,AMZN MKTP UK AMAZON.CO,Neighbourhoods,3.29,Materials & Consumables,1819Q02_PC00613
Sandwell Metropolitan Borough Council,http://www.sandwell.gov.uk/info/200202/performance_and_spending/3233/government_procurement_cards,20-Aug-2018,Housing & Communities,AMZN MKTP UK AMAZON.CO,Neighbourhoods,4.28,Materials & Consumables,1819Q02_PC00614
Sandwell Metropolitan Borough Council,http://www.sandwell.gov.uk/info/200202/performance_and_spending/3233/government_procurement_cards,20-Aug-2018,Adult Social Care Health and Wellbeing - Total,ARGOS LTD,Total Adult Social Care,164.15,Materials & Consumables,1819Q02_PC00615
Sandwell Metropolitan Borough Council,http://www.sandwell.gov.uk/info/200202/performance_and_spending/3233/government_procurement_cards,20-Aug-2018,Total Housing Revenue Account,Premier Farnell,Total Housing Revenue Account,22.45,Materials & Consumables,1819Q02_PC00616
Sandwell Metropolitan Borough Council,http://www.sandwell.gov.uk/info/200202/performance_and_spending/3233/government_procurement_cards,20-Aug-2018,Housing & Communities,HIGHFIELD HOUSE HO,Neighbourhoods,840,Rents,1819Q02_PC00617
Sandwell Metropolitan Borough Council,http://www.sandwell.gov.uk/info/200202/performance_and_spending/3233/government_procurement_cards,20-Aug-2018,Resources (Inc SIU),Amazon.co.uk,Assistant Chief Executive (Excl SIU),63.56,Equipment & Furniture,1819Q02_PC00618
Sandwell Metropolitan Borough Council,http://www.sandwell.gov.uk/info/200202/performance_and_spending/3233/government_procurement_cards,20-Aug-2018,Housing & Communities,AMZN MKTP UK AMAZON.CO,Neighbourhoods,3.14,Materials & Consumables,1819Q02_PC00619
Sandwell Metropolitan Borough Council,http://www.sandwell.gov.uk/info/200202/performance_and_spending/3233/government_procurement_cards,20-Aug-2018,Housing & Communities,AMZN MKTP UK AMAZON.CO,Neighbourhoods,4.49,Materials & Consumables,1819Q02_PC00620
